{"text_format":"1","workbook":"xlsx","n_sheets":9,"sheets":["使い方","ここから開始","年度1","年度2","年度3","年度4","年度5","temp","出力票"],"not_rendered":{"charts":8,"images":0,"macros":1,"external_links":0,"defined_names":4,"comments":0,"pivot_tables":0},"unopened":[],"bounds":{"document_bytes":16777216,"sheet_cells":100000,"rows_first":2000,"rows_last":500,"rows_between":2000,"halvings":0,"cell_chars":16384,"cell_head_chars":4096},"cells_cut":0,"cells_raw":0,"read":"whole","date_system":"1900"}

{"sheet":"使い方","index":0,"n_rows":18,"n_cols":1,"rows_kept":18,"cut":false,"hidden":false,"merged":[]}
["平均余命と平均自立期間の見える化ツールの使い方 (Version 2.11)"]
["（１）ＫＤＢの地域の全体像の把握の画面から、ＣＳＶファイルを出力・保存する。"]
["（２）「ここから開始」シートから（１）で保存したＣＳＶファイルを選択する。"]
["　　　「年度1」を年齢調整の基準にするので、「年度1」は必須です。"]
["（３）「計算開始」をクリックすると、計算結果が表示される。"]
["　　　①国等と比較する年度を選択できます。"]
["　　　②経年比較する地域（保険者、県、同規模、国）を選択できます。"]
[]
["見本データは全て仮想値です。"]
[]
["このエクセルファイルは、マクロを使っています。\nセキュリティの警告でマクロが無効にされた場合は、コンテンツの有効化を行って下さい。"]
[]
["履歴"]
["Ver.2.11　2026/6/1　男性の平均自立期間の凡例が「生活習慣」と表示される不具合を修正しました。値には誤りありません。"]
["Ver.2.1　CSVファイルを選択して実行できるようにしました。"]
["Ver.2.0  2022/12/23　経年推移を表示できるようにしました。"]
["Ver.1.0  2022/6/22"]
["Ver.0.9  2021/2/3"]

{"sheet":"ここから開始","index":1,"n_rows":12,"n_cols":2,"rows_kept":12,"cut":false,"hidden":false,"merged":[[1,1,1,2]]}
["健康寿命（平均自立期間）等の見える化ツール（Version 2.11）"]
["使い方","「参照」をクリックして白いセルに地域の全体像の把握のＣＳＶファイルを指定（順に最大５つ）\n　⇒　「計算開始」をクリック　⇒　年度1～5に値が読み込まれる　⇒　「出力票」シートに結果が表示される"]
[]
["年度1"]
[]
["年度2"]
[]
["年度3"]
[]
["年度4"]
[]
["年度5"]

{"sheet":"年度1","index":2,"n_rows":88,"n_cols":119,"rows_kept":88,"cut":false,"hidden":false,"merged":[]}
["レコード種別","保険者番号","保険者名","二次医療圏名","作成年月","県計・国計"]
["共通部",999999,"Ｘ市",null,"R01年度（累計）","国保組合含む"]
["レコード種別","集計単位","平均寿命（男性）","平均寿命（女性）","健康寿命（男性）","健康寿命（女性）","標準化死亡比（男性）","標準化死亡比（女性）","年齢調整死亡率（男性）","年齢調整死亡率（女性）","死亡者数","死亡者数（がん）","死因割合（がん）","死亡者数（心臓病）","死因割合（心臓病）","死亡者数（脳疾患）","死因割合（脳疾患）","死亡者数（糖尿病）","死因割合（糖尿病）","死亡者数（腎不全）","死因割合（腎不全）","死亡者数（自殺）","死因割合（自殺）","平均自立期間（要介護２以上）（男性）","平均自立期間95%信頼区間 上限（要介護２以上）（男性）","平均自立期間95%信頼区間 下限（要介護２以上）（男性）","平均自立期間（要介護２以上）（女性）","平均自立期間95%信頼区間 上限（要介護２以上）（女性）","平均自立期間95%信頼区間 下限（要介護２以上）（女性）","平均自立期間（要支援・要介護）（男性）","平均自立期間95%信頼区間 上限（要支援・要介護）（男性）","平均自立期間95%信頼区間 下限（要支援・要介護）（男性）","平均自立期間（要支援・要介護）（女性）","平均自立期間95%信頼区間 上限（要支援・要介護）（女性）","平均自立期間95%信頼区間 下限（要支援・要介護）（女性）","平均余命（男性）","平均余命95%信頼区間 上限（男性）","平均余命95%信頼区間 下限（男性）","平均余命（女性）","平均余命95%信頼区間 上限（女性）","平均余命95%信頼区間 下限（女性）","平均自立期間（要介護２以上）（男性）（二次医療圏）","平均自立期間95%信頼区間 上限（要介護２以上）（男性）（二次医療圏）","平均自立期間95%信頼区間 下限（要介護２以上）（男性）（二次医療圏）","平均自立期間（要介護２以上）（女性）（二次医療圏）","平均自立期間95%信頼区間 上限（要介護２以上）（女性）（二次医療圏）","平均自立期間95%信頼区間 下限（要介護２以上）（女性）（二次医療圏）","平均自立期間（要支援・要介護）（男性）（二次医療圏）","平均自立期間95%信頼区間 上限（要支援・要介護）（男性）（二次医療圏）","平均自立期間95%信頼区間 下限（要支援・要介護）（男性）（二次医療圏）","平均自立期間（要支援・要介護）（女性）（二次医療圏）","平均自立期間95%信頼区間 上限（要支援・要介護）（女性）（二次医療圏）","平均自立期間95%信頼区間 下限（要支援・要介護）（女性）（二次医療圏）","平均余命（男性）（二次医療圏）","平均余命95%信頼区間 上限（男性）（二次医療圏）","平均余命95%信頼区間 下限（男性）（二次医療圏）","平均余命（女性）（二次医療圏）","平均余命95%信頼区間 上限（女性）（二次医療圏）","平均余命95%信頼区間 下限（女性）（二次医療圏）"]
["平均寿命","保険者(地区)",null,null,null,null,null,null,null,null,null,null,null,null,null,null,null,null,null,null,null,null,null,80.099999999999994,81.099999999999994,79.099999999999994,80.099999999999994,81.099999999999994,79.099999999999994,null,null,null,null,null,null,80.3,81.3,79.3,80.3,81.3,79.3]
["平均寿命","県",null,null,null,null,null,null,null,null,null,null,null,null,null,null,null,null,null,null,null,null,null,80,81,79,80,81,79,null,null,null,null,null,null,80.2,81.2,79.2,80.2,81.2,79.2]
["平均寿命","同規模",null,null,null,null,null,null,null,null,null,null,null,null,null,null,null,null,null,null,null,null,null,79.900000000000006,80.900000000000006,78.900000000000006,79.900000000000006,80.900000000000006,78.900000000000006,null,null,null,null,null,null,80.099999999999994,81.099999999999994,79.099999999999994,80.099999999999994,81.099999999999994,79.099999999999994]
["平均寿命","国",null,null,null,null,null,null,null,null,null,null,null,null,null,null,null,null,null,null,null,null,null,79.8,80.8,78.8,79.8,80.8,78.8,null,null,null,null,null,null,80,81,79,80,81,79]
["レコード種別","集計単位","質問票有所見者数（服薬_高血圧症）","質問票総回答数（服薬_高血圧症）","服薬_高血圧症","質問票有所見者数（服薬_糖尿病）","質問票総回答数（服薬_糖尿病）","服薬_糖尿病","質問票有所見者数（服薬_脂質異常症）","質問票総回答数（服薬_脂質異常症）","服薬_脂質異常症","質問票有所見者数（既往歴_脳卒中）","質問票総回答数（既往歴_脳卒中）","既往歴_脳卒中","質問票有所見者数（既往歴_心臓病）","質問票総回答数（既往歴_心臓病）","既往歴_心臓病","質問票有所見者数（既往歴_慢性腎臓病・腎不全）","質問票総回答数（既往歴_慢性腎臓病・腎不全）","既往歴_慢性腎臓病・腎不全","質問票有所見者数（既往歴_貧血）","質問票総回答数（既往歴_貧血）","既往歴_貧血","質問票有所見者数（喫煙）","質問票総回答数（喫煙）","喫煙","質問票有所見者数（２０歳時体重から１０kg以上増加）","質問票総回答数（２０歳時体重から１０kg以上増加）","２０歳時体重から１０kg以上増加","質問票有所見者数（１回３０分以上の運動習慣なし）","質問票総回答数（１回３０分以上の運動習慣なし）","１回３０分以上の運動習慣なし","質問票有所見者数（１日１時間以上運動なし）","質問票総回答数（１日１時間以上運動なし）","１日１時間以上運動なし","質問票有所見者数（歩行速度遅い）","質問票総回答数（歩行速度遅い）","歩行速度遅い","質問票有所見者数（１年間で体重増減３kg以上）","質問票総回答数（１年間で体重増減３kg以上）","１年間で体重増減３kg以上","質問票有所見者数（食べる速度が速い）","質問票総回答数（食べる速度が速い）","食べる速度が速い","質問票有所見者数（食べる速度が普通）","質問票総回答数（食べる速度が普通）","食べる速度が普通","質問票有所見者数（食べる速度が遅い）","質問票総回答数（食べる速度が遅い）","食べる速度が遅い","質問票有所見者数（週３回以上就寝前夕食）","質問票総回答数（週３回以上就寝前夕食）","週３回以上就寝前夕食","質問票有所見者数（週３回以上夕食後間食）","質問票総回答数（週３回以上夕食後間食）","週３回以上夕食後間食","質問票有所見者数（週３回以上朝食を抜く）","質問票総回答数（週３回以上朝食を抜く）","週３回以上朝食を抜く","質問票有所見者数（毎日飲酒）","質問票総回答数（毎日飲酒）","毎日飲酒","質問票有所見者数（時々飲酒）","質問票総回答数（時々飲酒）","時々飲酒","質問票有所見者数（飲まない）","質問票総回答数（飲まない）","飲まない","質問票有所見者数（１合未満）","質問票総回答数（１合未満）","１合未満","質問票有所見者数（１～２合）","質問票総回答数（１～２合）","１～２合","質問票有所見者数（２～３合）","質問票総回答数（２～３合）","２～３合","質問票有所見者数（３合以上）","質問票総回答数（３合以上）","３合以上","質問票有所見者数（睡眠不足）","質問票総回答数（睡眠不足）","睡眠不足","質問票有所見者数（改善意欲なし）","質問票総回答数（改善意欲なし）","改善意欲なし","質問票有所見者数（改善意欲あり）","質問票総回答数（改善意欲あり）","改善意欲あり","質問票有所見者数（改善意欲ありかつ始めている）","質問票総回答数（改善意欲ありかつ始めている）","改善意欲ありかつ始めている","質問票有所見者数（取り組み済み６ヶ月未満）","質問票総回答数（取り組み済み６ヶ月未満）","取り組み済み６ヶ月未満","質問票有所見者数（取り組み済み６ヶ月以上）","質問票総回答数（取り組み済み６ヶ月以上）","取り組み済み６ヶ月以上","質問票有所見者数（保健指導利用しない）","質問票総回答数（保健指導利用しない）","保健指導利用しない","質問票有所見者数（咀嚼_何でも）","質問票総回答数（咀嚼_何でも）","咀嚼_何でも","質問票有所見者数（咀嚼_かみにくい）","質問票総回答数（咀嚼_かみにくい）","咀嚼_かみにくい","質問票有所見者数（咀嚼_ほとんどかめない）","質問票総回答数（咀嚼_ほとんどかめない）","咀嚼_ほとんどかめない","質問票有所見者数（３食以外間食_毎日）","質問票総回答数（３食以外間食_毎日）","３食以外間食_毎日","質問票有所見者数（３食以外間食_時々）","質問票総回答数（３食以外間食_時々）","３食以外間食_時々","質問票有所見者数（３食以外間食_ほとんど摂取しない）","質問票総回答数（３食以外間食_ほとんど摂取しない）","３食以外間食_ほとんど摂取しない"]
["生活習慣","保険者(地区)"]
["生活習慣","県"]
["生活習慣","同規模"]
["生活習慣","国"]
["レコード種別","集計単位","最大医療資源傷病名","医療費","総医療費","医療費割合"]
["医療費分析","保険者(地区)","慢性腎臓病（透有）"]
["医療費分析","保険者(地区)","慢性腎臓病（透無）"]
["医療費分析","保険者(地区)","がん"]
["医療費分析","保険者(地区)","精神"]
["医療費分析","保険者(地区)","筋・骨格"]
["医療費分析","保険者(地区)","糖尿病"]
["医療費分析","保険者(地区)","高血圧症"]
["医療費分析","保険者(地区)","高尿酸血症"]
["医療費分析","保険者(地区)","脂肪肝"]
["医療費分析","保険者(地区)","動脈硬化症"]
["医療費分析","保険者(地区)","脳出血"]
["医療費分析","保険者(地区)","脳梗塞"]
["医療費分析","保険者(地区)","狭心症"]
["医療費分析","保険者(地区)","心筋梗塞"]
["医療費分析","保険者(地区)","脂質異常症"]
["医療費分析","県","慢性腎臓病（透有）"]
["医療費分析","県","慢性腎臓病（透無）"]
["医療費分析","県","がん"]
["医療費分析","県","精神"]
["医療費分析","県","筋・骨格"]
["医療費分析","県","糖尿病"]
["医療費分析","県","高血圧症"]
["医療費分析","県","高尿酸血症"]
["医療費分析","県","脂肪肝"]
["医療費分析","県","動脈硬化症"]
["医療費分析","県","脳出血"]
["医療費分析","県","脳梗塞"]
["医療費分析","県","狭心症"]
["医療費分析","県","心筋梗塞"]
["医療費分析","県","脂質異常症"]
["医療費分析","同規模","慢性腎臓病（透有）"]
["医療費分析","同規模","慢性腎臓病（透無）"]
["医療費分析","同規模","がん"]
["医療費分析","同規模","精神"]
["医療費分析","同規模","筋・骨格"]
["医療費分析","同規模","糖尿病"]
["医療費分析","同規模","高血圧症"]
["医療費分析","同規模","高尿酸血症"]
["医療費分析","同規模","脂肪肝"]
["医療費分析","同規模","動脈硬化症"]
["医療費分析","同規模","脳出血"]
["医療費分析","同規模","脳梗塞"]
["医療費分析","同規模","狭心症"]
["医療費分析","同規模","心筋梗塞"]
["医療費分析","同規模","脂質異常症"]
["医療費分析","国","慢性腎臓病（透有）"]
["医療費分析","国","慢性腎臓病（透無）"]
["医療費分析","国","がん"]
["医療費分析","国","精神"]
["医療費分析","国","筋・骨格"]
["医療費分析","国","糖尿病"]
["医療費分析","国","高血圧症"]
["医療費分析","国","高尿酸血症"]
["医療費分析","国","脂肪肝"]
["医療費分析","国","動脈硬化症"]
["医療費分析","国","脳出血"]
["医療費分析","国","脳梗塞"]
["医療費分析","国","狭心症"]
["医療費分析","国","心筋梗塞"]
["医療費分析","国","脂質異常症"]
["レコード種別","集計単位","健診受診者数","健診対象者数","受診率","人数（メタボ）","メタボ割合","人数（メタボ）（男性）","メタボ割合（男性）","人数（メタボ）（女性）","メタボ割合（女性）","人数（予備群）","予備群割合","人数（予備群）（男性）","予備群割合（男性）","人数（予備群）（女性）","予備群割合（女性）","人数（非肥満高血糖）","非肥満高血糖割合","動機付け支援実施者数","積極的支援実施者数","動機付け支援対象者数","積極的支援対象者数","特定保健指導実施率","基準値超人数（腹囲）","基準値超割合（腹囲）","基準値超人数（腹囲）（男性）","基準値超割合（腹囲）（男性）","基準値超人数（腹囲）（女性）","基準値超割合（腹囲）（女性）","基準値超人数（BMI）","基準値超割合（BMI）","基準値超人数（BMI）（男性）","基準値超割合（BMI）（男性）","基準値超人数（BMI）（女性）","基準値超割合（BMI）（女性）","基準値超人数（血糖）","基準値超割合（血糖）","基準値超人数（血圧）","基準値超割合（血圧）","基準値超人数（脂質）","基準値超割合（脂質）","基準値超人数（血糖・血圧）","基準値超割合（血糖・血圧）","基準値超人数（血糖・脂質）","基準値超割合（血糖・脂質）","基準値超人数（血圧・脂質）","基準値超割合（血圧・脂質）","基準値超人数（血糖・血圧・脂質）","基準値超割合（血糖・血圧・脂質）","初回受診者数","初回受診率","受診勧奨者数","受診勧奨者率","受診勧奨者数（医科レセ有）","受診勧奨者医療機関受診率","受診勧奨者数（医科レセ無）","受診勧奨者医療機関非受診率","未治療者数","未治療者率","医科レセ総点数（健診受診者）","医科レセ総件数（健診受診者）","特定健診受診者１件当たり医科レセ点数","医科レセ総点数（健診未受診者）","医科レセ総件数（健診未受診者）","特定健診未受診者１件当たり医科レセ点数"]
["健診","保険者(地区)"]
["健診","県"]
["健診","同規模"]
["健診","国"]
["レコード種別","集計単位","被保険者数","病院数","千人当たり病院数","診療所数","千人当たり診療所数","病床数","千人当たり病床数","医師数","千人当たり医師数","レセプト件数（外来）","千人当たり外来患者数","レセプト件数（入院）","千人当たり入院患者数","レセプト件数","受診率","レセプト総点数","１件当たり点数","レセプト総点数（一般）","１件当たり点数（一般）","レセプト総点数（退職）","１件当たり点数（退職）","レセプト総点数（後期）","１件当たり点数（後期）","レセプト総点数（外来）","外来費用の割合","外来受診率","１件当たり医療費点数（外来）","１人当たり医療費点数（外来）","総診療実日数（外来）","１日当たり医療費点数（外来）","１件当たり受診回数（外来）","レセプト総点数（入院）","入院費用の割合","入院率","１件当たり医療費点数（入院）","１人当たり医療費点数（入院）","総診療実日数（入院）","１日当たり医療費点数（入院）","１件当たり在院日数（入院）","歯科レセプト件数","歯科受診率","歯科レセプト総点数","歯科１件当たり医療費点数","歯科１人当たり医療費点数","歯科総診療実日数","歯科１日当たり医療費点数","歯科１件当たり受診回数"]
["医療","保険者(地区)"]
["医療","県"]
["医療","同規模"]
["医療","国"]
["レコード種別","集計単位","介護１号認定者数","介護１号被保険者数","１号認定率","総給付費","総件数","１件当給付費","総給付費（支１）","総件数（支１）","要支援１","総給付費（支２）","総件数（支２）","要支援２","総給付費（介１）","総件数（介１）","要介護１","総給付費（介２）","総件数（介２）","要介護２","総給付費（介３）","総件数（介３）","要介護３","総給付費（介４）","総件数（介４）","要介護４","総給付費（介５）","総件数（介５）","要介護５","２号認定者数","介護２号被保険者数","２号認定率","１号認定者数（新規）","新規認定率","前年１号認定者数（新規）","介護１号被保険者数（前年）","前々年１号認定者数（新規）","介護１号被保険者数(前々年）","新規認定率比較（前年／前々年）","認定者数（糖尿病）","有病状況（糖尿病）","認定者数（高血圧症）","有病状況（高血圧症）","認定者数（脂質異常症）","有病状況（脂質異常症）","認定者数（心臓病）","有病状況（心臓病）","認定者数（脳疾患）","有病状況（脳疾患）","認定者数（がん）","有病状況（がん）","認定者数（筋・骨格）","有病状況（筋・骨格）","認定者数（精神）","有病状況（精神）","総給付費（居宅）","総件数（居宅）","１件当たり給付費（居宅）","事業所数（居宅）","千人当たり事業所数（居宅）","総給付費（施設）","総件数（施設）","１件当たり給付費（施設）","事業所数（施設）","千人当たり事業所数（施設）","医科レセ総点数（認定者）","医科レセ総件数（認定者）","要介護（支援）認定者医療費","医科レセ総点数（認定なし）","医科レセ総件数（認定なし）","要介護（支援）認定なし者医療費","総ポイント数(悪化）","悪化状況","総ポイント数(改善）","改善状況","認定者数（再掲_認知症）","有病状況（再掲_認知症）","認定者数（ｱﾙﾂﾊｲﾏｰ病）","有病状況（ｱﾙﾂﾊｲﾏｰ病）","歯科レセ総点数（認定者）","歯科レセ総件数（認定者）","歯科要介護（支援）認定者医療費","歯科レセ総点数（認定なし）","歯科レセ総件数（認定なし）","歯科要介護（支援）認定なし者医療費"]
["介護","保険者(地区)"]
["介護","県"]
["介護","同規模"]
["介護","国"]

{"sheet":"年度2","index":3,"n_rows":88,"n_cols":119,"rows_kept":88,"cut":false,"hidden":false,"merged":[]}
["レコード種別","保険者番号","保険者名","二次医療圏名","作成年月","県計・国計"]
["共通部",999999,"Ｘ市",null,"R01年度（累計）","国保組合含む"]
["レコード種別","集計単位","平均寿命（男性）","平均寿命（女性）","健康寿命（男性）","健康寿命（女性）","標準化死亡比（男性）","標準化死亡比（女性）","年齢調整死亡率（男性）","年齢調整死亡率（女性）","死亡者数","死亡者数（がん）","死因割合（がん）","死亡者数（心臓病）","死因割合（心臓病）","死亡者数（脳疾患）","死因割合（脳疾患）","死亡者数（糖尿病）","死因割合（糖尿病）","死亡者数（腎不全）","死因割合（腎不全）","死亡者数（自殺）","死因割合（自殺）","平均自立期間（要介護２以上）（男性）","平均自立期間95%信頼区間 上限（要介護２以上）（男性）","平均自立期間95%信頼区間 下限（要介護２以上）（男性）","平均自立期間（要介護２以上）（女性）","平均自立期間95%信頼区間 上限（要介護２以上）（女性）","平均自立期間95%信頼区間 下限（要介護２以上）（女性）","平均自立期間（要支援・要介護）（男性）","平均自立期間95%信頼区間 上限（要支援・要介護）（男性）","平均自立期間95%信頼区間 下限（要支援・要介護）（男性）","平均自立期間（要支援・要介護）（女性）","平均自立期間95%信頼区間 上限（要支援・要介護）（女性）","平均自立期間95%信頼区間 下限（要支援・要介護）（女性）","平均余命（男性）","平均余命95%信頼区間 上限（男性）","平均余命95%信頼区間 下限（男性）","平均余命（女性）","平均余命95%信頼区間 上限（女性）","平均余命95%信頼区間 下限（女性）","平均自立期間（要介護２以上）（男性）（二次医療圏）","平均自立期間95%信頼区間 上限（要介護２以上）（男性）（二次医療圏）","平均自立期間95%信頼区間 下限（要介護２以上）（男性）（二次医療圏）","平均自立期間（要介護２以上）（女性）（二次医療圏）","平均自立期間95%信頼区間 上限（要介護２以上）（女性）（二次医療圏）","平均自立期間95%信頼区間 下限（要介護２以上）（女性）（二次医療圏）","平均自立期間（要支援・要介護）（男性）（二次医療圏）","平均自立期間95%信頼区間 上限（要支援・要介護）（男性）（二次医療圏）","平均自立期間95%信頼区間 下限（要支援・要介護）（男性）（二次医療圏）","平均自立期間（要支援・要介護）（女性）（二次医療圏）","平均自立期間95%信頼区間 上限（要支援・要介護）（女性）（二次医療圏）","平均自立期間95%信頼区間 下限（要支援・要介護）（女性）（二次医療圏）","平均余命（男性）（二次医療圏）","平均余命95%信頼区間 上限（男性）（二次医療圏）","平均余命95%信頼区間 下限（男性）（二次医療圏）","平均余命（女性）（二次医療圏）","平均余命95%信頼区間 上限（女性）（二次医療圏）","平均余命95%信頼区間 下限（女性）（二次医療圏）"]
["平均寿命","保険者(地区)",null,null,null,null,null,null,null,null,null,null,null,null,null,null,null,null,null,null,null,null,null,80.099999999999994,81.099999999999994,79.099999999999994,80.099999999999994,81.099999999999994,79.099999999999994,null,null,null,null,null,null,80.3,81.3,79.3,80.3,81.3,79.3]
["平均寿命","県",null,null,null,null,null,null,null,null,null,null,null,null,null,null,null,null,null,null,null,null,null,80,81,79,80,81,79,null,null,null,null,null,null,80.2,81.2,79.2,80.2,81.2,79.2]
["平均寿命","同規模",null,null,null,null,null,null,null,null,null,null,null,null,null,null,null,null,null,null,null,null,null,79.900000000000006,80.900000000000006,78.900000000000006,79.900000000000006,80.900000000000006,78.900000000000006,null,null,null,null,null,null,80.099999999999994,81.099999999999994,79.099999999999994,80.099999999999994,81.099999999999994,79.099999999999994]
["平均寿命","国",null,null,null,null,null,null,null,null,null,null,null,null,null,null,null,null,null,null,null,null,null,79.8,80.8,78.8,79.8,80.8,78.8,null,null,null,null,null,null,80,81,79,80,81,79]
["レコード種別","集計単位","質問票有所見者数（服薬_高血圧症）","質問票総回答数（服薬_高血圧症）","服薬_高血圧症","質問票有所見者数（服薬_糖尿病）","質問票総回答数（服薬_糖尿病）","服薬_糖尿病","質問票有所見者数（服薬_脂質異常症）","質問票総回答数（服薬_脂質異常症）","服薬_脂質異常症","質問票有所見者数（既往歴_脳卒中）","質問票総回答数（既往歴_脳卒中）","既往歴_脳卒中","質問票有所見者数（既往歴_心臓病）","質問票総回答数（既往歴_心臓病）","既往歴_心臓病","質問票有所見者数（既往歴_慢性腎臓病・腎不全）","質問票総回答数（既往歴_慢性腎臓病・腎不全）","既往歴_慢性腎臓病・腎不全","質問票有所見者数（既往歴_貧血）","質問票総回答数（既往歴_貧血）","既往歴_貧血","質問票有所見者数（喫煙）","質問票総回答数（喫煙）","喫煙","質問票有所見者数（２０歳時体重から１０kg以上増加）","質問票総回答数（２０歳時体重から１０kg以上増加）","２０歳時体重から１０kg以上増加","質問票有所見者数（１回３０分以上の運動習慣なし）","質問票総回答数（１回３０分以上の運動習慣なし）","１回３０分以上の運動習慣なし","質問票有所見者数（１日１時間以上運動なし）","質問票総回答数（１日１時間以上運動なし）","１日１時間以上運動なし","質問票有所見者数（歩行速度遅い）","質問票総回答数（歩行速度遅い）","歩行速度遅い","質問票有所見者数（１年間で体重増減３kg以上）","質問票総回答数（１年間で体重増減３kg以上）","１年間で体重増減３kg以上","質問票有所見者数（食べる速度が速い）","質問票総回答数（食べる速度が速い）","食べる速度が速い","質問票有所見者数（食べる速度が普通）","質問票総回答数（食べる速度が普通）","食べる速度が普通","質問票有所見者数（食べる速度が遅い）","質問票総回答数（食べる速度が遅い）","食べる速度が遅い","質問票有所見者数（週３回以上就寝前夕食）","質問票総回答数（週３回以上就寝前夕食）","週３回以上就寝前夕食","質問票有所見者数（週３回以上夕食後間食）","質問票総回答数（週３回以上夕食後間食）","週３回以上夕食後間食","質問票有所見者数（週３回以上朝食を抜く）","質問票総回答数（週３回以上朝食を抜く）","週３回以上朝食を抜く","質問票有所見者数（毎日飲酒）","質問票総回答数（毎日飲酒）","毎日飲酒","質問票有所見者数（時々飲酒）","質問票総回答数（時々飲酒）","時々飲酒","質問票有所見者数（飲まない）","質問票総回答数（飲まない）","飲まない","質問票有所見者数（１合未満）","質問票総回答数（１合未満）","１合未満","質問票有所見者数（１～２合）","質問票総回答数（１～２合）","１～２合","質問票有所見者数（２～３合）","質問票総回答数（２～３合）","２～３合","質問票有所見者数（３合以上）","質問票総回答数（３合以上）","３合以上","質問票有所見者数（睡眠不足）","質問票総回答数（睡眠不足）","睡眠不足","質問票有所見者数（改善意欲なし）","質問票総回答数（改善意欲なし）","改善意欲なし","質問票有所見者数（改善意欲あり）","質問票総回答数（改善意欲あり）","改善意欲あり","質問票有所見者数（改善意欲ありかつ始めている）","質問票総回答数（改善意欲ありかつ始めている）","改善意欲ありかつ始めている","質問票有所見者数（取り組み済み６ヶ月未満）","質問票総回答数（取り組み済み６ヶ月未満）","取り組み済み６ヶ月未満","質問票有所見者数（取り組み済み６ヶ月以上）","質問票総回答数（取り組み済み６ヶ月以上）","取り組み済み６ヶ月以上","質問票有所見者数（保健指導利用しない）","質問票総回答数（保健指導利用しない）","保健指導利用しない","質問票有所見者数（咀嚼_何でも）","質問票総回答数（咀嚼_何でも）","咀嚼_何でも","質問票有所見者数（咀嚼_かみにくい）","質問票総回答数（咀嚼_かみにくい）","咀嚼_かみにくい","質問票有所見者数（咀嚼_ほとんどかめない）","質問票総回答数（咀嚼_ほとんどかめない）","咀嚼_ほとんどかめない","質問票有所見者数（３食以外間食_毎日）","質問票総回答数（３食以外間食_毎日）","３食以外間食_毎日","質問票有所見者数（３食以外間食_時々）","質問票総回答数（３食以外間食_時々）","３食以外間食_時々","質問票有所見者数（３食以外間食_ほとんど摂取しない）","質問票総回答数（３食以外間食_ほとんど摂取しない）","３食以外間食_ほとんど摂取しない"]
["生活習慣","保険者(地区)"]
["生活習慣","県"]
["生活習慣","同規模"]
["生活習慣","国"]
["レコード種別","集計単位","最大医療資源傷病名","医療費","総医療費","医療費割合"]
["医療費分析","保険者(地区)","慢性腎臓病（透有）"]
["医療費分析","保険者(地区)","慢性腎臓病（透無）"]
["医療費分析","保険者(地区)","がん"]
["医療費分析","保険者(地区)","精神"]
["医療費分析","保険者(地区)","筋・骨格"]
["医療費分析","保険者(地区)","糖尿病"]
["医療費分析","保険者(地区)","高血圧症"]
["医療費分析","保険者(地区)","高尿酸血症"]
["医療費分析","保険者(地区)","脂肪肝"]
["医療費分析","保険者(地区)","動脈硬化症"]
["医療費分析","保険者(地区)","脳出血"]
["医療費分析","保険者(地区)","脳梗塞"]
["医療費分析","保険者(地区)","狭心症"]
["医療費分析","保険者(地区)","心筋梗塞"]
["医療費分析","保険者(地区)","脂質異常症"]
["医療費分析","県","慢性腎臓病（透有）"]
["医療費分析","県","慢性腎臓病（透無）"]
["医療費分析","県","がん"]
["医療費分析","県","精神"]
["医療費分析","県","筋・骨格"]
["医療費分析","県","糖尿病"]
["医療費分析","県","高血圧症"]
["医療費分析","県","高尿酸血症"]
["医療費分析","県","脂肪肝"]
["医療費分析","県","動脈硬化症"]
["医療費分析","県","脳出血"]
["医療費分析","県","脳梗塞"]
["医療費分析","県","狭心症"]
["医療費分析","県","心筋梗塞"]
["医療費分析","県","脂質異常症"]
["医療費分析","同規模","慢性腎臓病（透有）"]
["医療費分析","同規模","慢性腎臓病（透無）"]
["医療費分析","同規模","がん"]
["医療費分析","同規模","精神"]
["医療費分析","同規模","筋・骨格"]
["医療費分析","同規模","糖尿病"]
["医療費分析","同規模","高血圧症"]
["医療費分析","同規模","高尿酸血症"]
["医療費分析","同規模","脂肪肝"]
["医療費分析","同規模","動脈硬化症"]
["医療費分析","同規模","脳出血"]
["医療費分析","同規模","脳梗塞"]
["医療費分析","同規模","狭心症"]
["医療費分析","同規模","心筋梗塞"]
["医療費分析","同規模","脂質異常症"]
["医療費分析","国","慢性腎臓病（透有）"]
["医療費分析","国","慢性腎臓病（透無）"]
["医療費分析","国","がん"]
["医療費分析","国","精神"]
["医療費分析","国","筋・骨格"]
["医療費分析","国","糖尿病"]
["医療費分析","国","高血圧症"]
["医療費分析","国","高尿酸血症"]
["医療費分析","国","脂肪肝"]
["医療費分析","国","動脈硬化症"]
["医療費分析","国","脳出血"]
["医療費分析","国","脳梗塞"]
["医療費分析","国","狭心症"]
["医療費分析","国","心筋梗塞"]
["医療費分析","国","脂質異常症"]
["レコード種別","集計単位","健診受診者数","健診対象者数","受診率","人数（メタボ）","メタボ割合","人数（メタボ）（男性）","メタボ割合（男性）","人数（メタボ）（女性）","メタボ割合（女性）","人数（予備群）","予備群割合","人数（予備群）（男性）","予備群割合（男性）","人数（予備群）（女性）","予備群割合（女性）","人数（非肥満高血糖）","非肥満高血糖割合","動機付け支援実施者数","積極的支援実施者数","動機付け支援対象者数","積極的支援対象者数","特定保健指導実施率","基準値超人数（腹囲）","基準値超割合（腹囲）","基準値超人数（腹囲）（男性）","基準値超割合（腹囲）（男性）","基準値超人数（腹囲）（女性）","基準値超割合（腹囲）（女性）","基準値超人数（BMI）","基準値超割合（BMI）","基準値超人数（BMI）（男性）","基準値超割合（BMI）（男性）","基準値超人数（BMI）（女性）","基準値超割合（BMI）（女性）","基準値超人数（血糖）","基準値超割合（血糖）","基準値超人数（血圧）","基準値超割合（血圧）","基準値超人数（脂質）","基準値超割合（脂質）","基準値超人数（血糖・血圧）","基準値超割合（血糖・血圧）","基準値超人数（血糖・脂質）","基準値超割合（血糖・脂質）","基準値超人数（血圧・脂質）","基準値超割合（血圧・脂質）","基準値超人数（血糖・血圧・脂質）","基準値超割合（血糖・血圧・脂質）","初回受診者数","初回受診率","受診勧奨者数","受診勧奨者率","受診勧奨者数（医科レセ有）","受診勧奨者医療機関受診率","受診勧奨者数（医科レセ無）","受診勧奨者医療機関非受診率","未治療者数","未治療者率","医科レセ総点数（健診受診者）","医科レセ総件数（健診受診者）","特定健診受診者１件当たり医科レセ点数","医科レセ総点数（健診未受診者）","医科レセ総件数（健診未受診者）","特定健診未受診者１件当たり医科レセ点数"]
["健診","保険者(地区)"]
["健診","県"]
["健診","同規模"]
["健診","国"]
["レコード種別","集計単位","被保険者数","病院数","千人当たり病院数","診療所数","千人当たり診療所数","病床数","千人当たり病床数","医師数","千人当たり医師数","レセプト件数（外来）","千人当たり外来患者数","レセプト件数（入院）","千人当たり入院患者数","レセプト件数","受診率","レセプト総点数","１件当たり点数","レセプト総点数（一般）","１件当たり点数（一般）","レセプト総点数（退職）","１件当たり点数（退職）","レセプト総点数（後期）","１件当たり点数（後期）","レセプト総点数（外来）","外来費用の割合","外来受診率","１件当たり医療費点数（外来）","１人当たり医療費点数（外来）","総診療実日数（外来）","１日当たり医療費点数（外来）","１件当たり受診回数（外来）","レセプト総点数（入院）","入院費用の割合","入院率","１件当たり医療費点数（入院）","１人当たり医療費点数（入院）","総診療実日数（入院）","１日当たり医療費点数（入院）","１件当たり在院日数（入院）","歯科レセプト件数","歯科受診率","歯科レセプト総点数","歯科１件当たり医療費点数","歯科１人当たり医療費点数","歯科総診療実日数","歯科１日当たり医療費点数","歯科１件当たり受診回数"]
["医療","保険者(地区)"]
["医療","県"]
["医療","同規模"]
["医療","国"]
["レコード種別","集計単位","介護１号認定者数","介護１号被保険者数","１号認定率","総給付費","総件数","１件当給付費","総給付費（支１）","総件数（支１）","要支援１","総給付費（支２）","総件数（支２）","要支援２","総給付費（介１）","総件数（介１）","要介護１","総給付費（介２）","総件数（介２）","要介護２","総給付費（介３）","総件数（介３）","要介護３","総給付費（介４）","総件数（介４）","要介護４","総給付費（介５）","総件数（介５）","要介護５","２号認定者数","介護２号被保険者数","２号認定率","１号認定者数（新規）","新規認定率","前年１号認定者数（新規）","介護１号被保険者数（前年）","前々年１号認定者数（新規）","介護１号被保険者数(前々年）","新規認定率比較（前年／前々年）","認定者数（糖尿病）","有病状況（糖尿病）","認定者数（高血圧症）","有病状況（高血圧症）","認定者数（脂質異常症）","有病状況（脂質異常症）","認定者数（心臓病）","有病状況（心臓病）","認定者数（脳疾患）","有病状況（脳疾患）","認定者数（がん）","有病状況（がん）","認定者数（筋・骨格）","有病状況（筋・骨格）","認定者数（精神）","有病状況（精神）","総給付費（居宅）","総件数（居宅）","１件当たり給付費（居宅）","事業所数（居宅）","千人当たり事業所数（居宅）","総給付費（施設）","総件数（施設）","１件当たり給付費（施設）","事業所数（施設）","千人当たり事業所数（施設）","医科レセ総点数（認定者）","医科レセ総件数（認定者）","要介護（支援）認定者医療費","医科レセ総点数（認定なし）","医科レセ総件数（認定なし）","要介護（支援）認定なし者医療費","総ポイント数(悪化）","悪化状況","総ポイント数(改善）","改善状況","認定者数（再掲_認知症）","有病状況（再掲_認知症）","認定者数（ｱﾙﾂﾊｲﾏｰ病）","有病状況（ｱﾙﾂﾊｲﾏｰ病）","歯科レセ総点数（認定者）","歯科レセ総件数（認定者）","歯科要介護（支援）認定者医療費","歯科レセ総点数（認定なし）","歯科レセ総件数（認定なし）","歯科要介護（支援）認定なし者医療費"]
["介護","保険者(地区)"]
["介護","県"]
["介護","同規模"]
["介護","国"]

{"sheet":"年度3","index":4,"n_rows":88,"n_cols":119,"rows_kept":88,"cut":false,"hidden":false,"merged":[]}
["レコード種別","保険者番号","保険者名","二次医療圏名","作成年月","県計・国計"]
["共通部",999999,"Ｘ市",null,"R01年度（累計）","国保組合含む"]
["レコード種別","集計単位","平均寿命（男性）","平均寿命（女性）","健康寿命（男性）","健康寿命（女性）","標準化死亡比（男性）","標準化死亡比（女性）","年齢調整死亡率（男性）","年齢調整死亡率（女性）","死亡者数","死亡者数（がん）","死因割合（がん）","死亡者数（心臓病）","死因割合（心臓病）","死亡者数（脳疾患）","死因割合（脳疾患）","死亡者数（糖尿病）","死因割合（糖尿病）","死亡者数（腎不全）","死因割合（腎不全）","死亡者数（自殺）","死因割合（自殺）","平均自立期間（要介護２以上）（男性）","平均自立期間95%信頼区間 上限（要介護２以上）（男性）","平均自立期間95%信頼区間 下限（要介護２以上）（男性）","平均自立期間（要介護２以上）（女性）","平均自立期間95%信頼区間 上限（要介護２以上）（女性）","平均自立期間95%信頼区間 下限（要介護２以上）（女性）","平均自立期間（要支援・要介護）（男性）","平均自立期間95%信頼区間 上限（要支援・要介護）（男性）","平均自立期間95%信頼区間 下限（要支援・要介護）（男性）","平均自立期間（要支援・要介護）（女性）","平均自立期間95%信頼区間 上限（要支援・要介護）（女性）","平均自立期間95%信頼区間 下限（要支援・要介護）（女性）","平均余命（男性）","平均余命95%信頼区間 上限（男性）","平均余命95%信頼区間 下限（男性）","平均余命（女性）","平均余命95%信頼区間 上限（女性）","平均余命95%信頼区間 下限（女性）","平均自立期間（要介護２以上）（男性）（二次医療圏）","平均自立期間95%信頼区間 上限（要介護２以上）（男性）（二次医療圏）","平均自立期間95%信頼区間 下限（要介護２以上）（男性）（二次医療圏）","平均自立期間（要介護２以上）（女性）（二次医療圏）","平均自立期間95%信頼区間 上限（要介護２以上）（女性）（二次医療圏）","平均自立期間95%信頼区間 下限（要介護２以上）（女性）（二次医療圏）","平均自立期間（要支援・要介護）（男性）（二次医療圏）","平均自立期間95%信頼区間 上限（要支援・要介護）（男性）（二次医療圏）","平均自立期間95%信頼区間 下限（要支援・要介護）（男性）（二次医療圏）","平均自立期間（要支援・要介護）（女性）（二次医療圏）","平均自立期間95%信頼区間 上限（要支援・要介護）（女性）（二次医療圏）","平均自立期間95%信頼区間 下限（要支援・要介護）（女性）（二次医療圏）","平均余命（男性）（二次医療圏）","平均余命95%信頼区間 上限（男性）（二次医療圏）","平均余命95%信頼区間 下限（男性）（二次医療圏）","平均余命（女性）（二次医療圏）","平均余命95%信頼区間 上限（女性）（二次医療圏）","平均余命95%信頼区間 下限（女性）（二次医療圏）"]
["平均寿命","保険者(地区)",null,null,null,null,null,null,null,null,null,null,null,null,null,null,null,null,null,null,null,null,null,80.099999999999994,81.099999999999994,79.099999999999994,80.099999999999994,81.099999999999994,79.099999999999994,null,null,null,null,null,null,80.3,81.3,79.3,80.3,81.3,79.3]
["平均寿命","県",null,null,null,null,null,null,null,null,null,null,null,null,null,null,null,null,null,null,null,null,null,80,81,79,80,81,79,null,null,null,null,null,null,80.2,81.2,79.2,80.2,81.2,79.2]
["平均寿命","同規模",null,null,null,null,null,null,null,null,null,null,null,null,null,null,null,null,null,null,null,null,null,79.900000000000006,80.900000000000006,78.900000000000006,79.900000000000006,80.900000000000006,78.900000000000006,null,null,null,null,null,null,80.099999999999994,81.099999999999994,79.099999999999994,80.099999999999994,81.099999999999994,79.099999999999994]
["平均寿命","国",null,null,null,null,null,null,null,null,null,null,null,null,null,null,null,null,null,null,null,null,null,79.8,80.8,78.8,79.8,80.8,78.8,null,null,null,null,null,null,80,81,79,80,81,79]
["レコード種別","集計単位","質問票有所見者数（服薬_高血圧症）","質問票総回答数（服薬_高血圧症）","服薬_高血圧症","質問票有所見者数（服薬_糖尿病）","質問票総回答数（服薬_糖尿病）","服薬_糖尿病","質問票有所見者数（服薬_脂質異常症）","質問票総回答数（服薬_脂質異常症）","服薬_脂質異常症","質問票有所見者数（既往歴_脳卒中）","質問票総回答数（既往歴_脳卒中）","既往歴_脳卒中","質問票有所見者数（既往歴_心臓病）","質問票総回答数（既往歴_心臓病）","既往歴_心臓病","質問票有所見者数（既往歴_慢性腎臓病・腎不全）","質問票総回答数（既往歴_慢性腎臓病・腎不全）","既往歴_慢性腎臓病・腎不全","質問票有所見者数（既往歴_貧血）","質問票総回答数（既往歴_貧血）","既往歴_貧血","質問票有所見者数（喫煙）","質問票総回答数（喫煙）","喫煙","質問票有所見者数（２０歳時体重から１０kg以上増加）","質問票総回答数（２０歳時体重から１０kg以上増加）","２０歳時体重から１０kg以上増加","質問票有所見者数（１回３０分以上の運動習慣なし）","質問票総回答数（１回３０分以上の運動習慣なし）","１回３０分以上の運動習慣なし","質問票有所見者数（１日１時間以上運動なし）","質問票総回答数（１日１時間以上運動なし）","１日１時間以上運動なし","質問票有所見者数（歩行速度遅い）","質問票総回答数（歩行速度遅い）","歩行速度遅い","質問票有所見者数（１年間で体重増減３kg以上）","質問票総回答数（１年間で体重増減３kg以上）","１年間で体重増減３kg以上","質問票有所見者数（食べる速度が速い）","質問票総回答数（食べる速度が速い）","食べる速度が速い","質問票有所見者数（食べる速度が普通）","質問票総回答数（食べる速度が普通）","食べる速度が普通","質問票有所見者数（食べる速度が遅い）","質問票総回答数（食べる速度が遅い）","食べる速度が遅い","質問票有所見者数（週３回以上就寝前夕食）","質問票総回答数（週３回以上就寝前夕食）","週３回以上就寝前夕食","質問票有所見者数（週３回以上夕食後間食）","質問票総回答数（週３回以上夕食後間食）","週３回以上夕食後間食","質問票有所見者数（週３回以上朝食を抜く）","質問票総回答数（週３回以上朝食を抜く）","週３回以上朝食を抜く","質問票有所見者数（毎日飲酒）","質問票総回答数（毎日飲酒）","毎日飲酒","質問票有所見者数（時々飲酒）","質問票総回答数（時々飲酒）","時々飲酒","質問票有所見者数（飲まない）","質問票総回答数（飲まない）","飲まない","質問票有所見者数（１合未満）","質問票総回答数（１合未満）","１合未満","質問票有所見者数（１～２合）","質問票総回答数（１～２合）","１～２合","質問票有所見者数（２～３合）","質問票総回答数（２～３合）","２～３合","質問票有所見者数（３合以上）","質問票総回答数（３合以上）","３合以上","質問票有所見者数（睡眠不足）","質問票総回答数（睡眠不足）","睡眠不足","質問票有所見者数（改善意欲なし）","質問票総回答数（改善意欲なし）","改善意欲なし","質問票有所見者数（改善意欲あり）","質問票総回答数（改善意欲あり）","改善意欲あり","質問票有所見者数（改善意欲ありかつ始めている）","質問票総回答数（改善意欲ありかつ始めている）","改善意欲ありかつ始めている","質問票有所見者数（取り組み済み６ヶ月未満）","質問票総回答数（取り組み済み６ヶ月未満）","取り組み済み６ヶ月未満","質問票有所見者数（取り組み済み６ヶ月以上）","質問票総回答数（取り組み済み６ヶ月以上）","取り組み済み６ヶ月以上","質問票有所見者数（保健指導利用しない）","質問票総回答数（保健指導利用しない）","保健指導利用しない","質問票有所見者数（咀嚼_何でも）","質問票総回答数（咀嚼_何でも）","咀嚼_何でも","質問票有所見者数（咀嚼_かみにくい）","質問票総回答数（咀嚼_かみにくい）","咀嚼_かみにくい","質問票有所見者数（咀嚼_ほとんどかめない）","質問票総回答数（咀嚼_ほとんどかめない）","咀嚼_ほとんどかめない","質問票有所見者数（３食以外間食_毎日）","質問票総回答数（３食以外間食_毎日）","３食以外間食_毎日","質問票有所見者数（３食以外間食_時々）","質問票総回答数（３食以外間食_時々）","３食以外間食_時々","質問票有所見者数（３食以外間食_ほとんど摂取しない）","質問票総回答数（３食以外間食_ほとんど摂取しない）","３食以外間食_ほとんど摂取しない"]
["生活習慣","保険者(地区)"]
["生活習慣","県"]
["生活習慣","同規模"]
["生活習慣","国"]
["レコード種別","集計単位","最大医療資源傷病名","医療費","総医療費","医療費割合"]
["医療費分析","保険者(地区)","慢性腎臓病（透有）"]
["医療費分析","保険者(地区)","慢性腎臓病（透無）"]
["医療費分析","保険者(地区)","がん"]
["医療費分析","保険者(地区)","精神"]
["医療費分析","保険者(地区)","筋・骨格"]
["医療費分析","保険者(地区)","糖尿病"]
["医療費分析","保険者(地区)","高血圧症"]
["医療費分析","保険者(地区)","高尿酸血症"]
["医療費分析","保険者(地区)","脂肪肝"]
["医療費分析","保険者(地区)","動脈硬化症"]
["医療費分析","保険者(地区)","脳出血"]
["医療費分析","保険者(地区)","脳梗塞"]
["医療費分析","保険者(地区)","狭心症"]
["医療費分析","保険者(地区)","心筋梗塞"]
["医療費分析","保険者(地区)","脂質異常症"]
["医療費分析","県","慢性腎臓病（透有）"]
["医療費分析","県","慢性腎臓病（透無）"]
["医療費分析","県","がん"]
["医療費分析","県","精神"]
["医療費分析","県","筋・骨格"]
["医療費分析","県","糖尿病"]
["医療費分析","県","高血圧症"]
["医療費分析","県","高尿酸血症"]
["医療費分析","県","脂肪肝"]
["医療費分析","県","動脈硬化症"]
["医療費分析","県","脳出血"]
["医療費分析","県","脳梗塞"]
["医療費分析","県","狭心症"]
["医療費分析","県","心筋梗塞"]
["医療費分析","県","脂質異常症"]
["医療費分析","同規模","慢性腎臓病（透有）"]
["医療費分析","同規模","慢性腎臓病（透無）"]
["医療費分析","同規模","がん"]
["医療費分析","同規模","精神"]
["医療費分析","同規模","筋・骨格"]
["医療費分析","同規模","糖尿病"]
["医療費分析","同規模","高血圧症"]
["医療費分析","同規模","高尿酸血症"]
["医療費分析","同規模","脂肪肝"]
["医療費分析","同規模","動脈硬化症"]
["医療費分析","同規模","脳出血"]
["医療費分析","同規模","脳梗塞"]
["医療費分析","同規模","狭心症"]
["医療費分析","同規模","心筋梗塞"]
["医療費分析","同規模","脂質異常症"]
["医療費分析","国","慢性腎臓病（透有）"]
["医療費分析","国","慢性腎臓病（透無）"]
["医療費分析","国","がん"]
["医療費分析","国","精神"]
["医療費分析","国","筋・骨格"]
["医療費分析","国","糖尿病"]
["医療費分析","国","高血圧症"]
["医療費分析","国","高尿酸血症"]
["医療費分析","国","脂肪肝"]
["医療費分析","国","動脈硬化症"]
["医療費分析","国","脳出血"]
["医療費分析","国","脳梗塞"]
["医療費分析","国","狭心症"]
["医療費分析","国","心筋梗塞"]
["医療費分析","国","脂質異常症"]
["レコード種別","集計単位","健診受診者数","健診対象者数","受診率","人数（メタボ）","メタボ割合","人数（メタボ）（男性）","メタボ割合（男性）","人数（メタボ）（女性）","メタボ割合（女性）","人数（予備群）","予備群割合","人数（予備群）（男性）","予備群割合（男性）","人数（予備群）（女性）","予備群割合（女性）","人数（非肥満高血糖）","非肥満高血糖割合","動機付け支援実施者数","積極的支援実施者数","動機付け支援対象者数","積極的支援対象者数","特定保健指導実施率","基準値超人数（腹囲）","基準値超割合（腹囲）","基準値超人数（腹囲）（男性）","基準値超割合（腹囲）（男性）","基準値超人数（腹囲）（女性）","基準値超割合（腹囲）（女性）","基準値超人数（BMI）","基準値超割合（BMI）","基準値超人数（BMI）（男性）","基準値超割合（BMI）（男性）","基準値超人数（BMI）（女性）","基準値超割合（BMI）（女性）","基準値超人数（血糖）","基準値超割合（血糖）","基準値超人数（血圧）","基準値超割合（血圧）","基準値超人数（脂質）","基準値超割合（脂質）","基準値超人数（血糖・血圧）","基準値超割合（血糖・血圧）","基準値超人数（血糖・脂質）","基準値超割合（血糖・脂質）","基準値超人数（血圧・脂質）","基準値超割合（血圧・脂質）","基準値超人数（血糖・血圧・脂質）","基準値超割合（血糖・血圧・脂質）","初回受診者数","初回受診率","受診勧奨者数","受診勧奨者率","受診勧奨者数（医科レセ有）","受診勧奨者医療機関受診率","受診勧奨者数（医科レセ無）","受診勧奨者医療機関非受診率","未治療者数","未治療者率","医科レセ総点数（健診受診者）","医科レセ総件数（健診受診者）","特定健診受診者１件当たり医科レセ点数","医科レセ総点数（健診未受診者）","医科レセ総件数（健診未受診者）","特定健診未受診者１件当たり医科レセ点数"]
["健診","保険者(地区)"]
["健診","県"]
["健診","同規模"]
["健診","国"]
["レコード種別","集計単位","被保険者数","病院数","千人当たり病院数","診療所数","千人当たり診療所数","病床数","千人当たり病床数","医師数","千人当たり医師数","レセプト件数（外来）","千人当たり外来患者数","レセプト件数（入院）","千人当たり入院患者数","レセプト件数","受診率","レセプト総点数","１件当たり点数","レセプト総点数（一般）","１件当たり点数（一般）","レセプト総点数（退職）","１件当たり点数（退職）","レセプト総点数（後期）","１件当たり点数（後期）","レセプト総点数（外来）","外来費用の割合","外来受診率","１件当たり医療費点数（外来）","１人当たり医療費点数（外来）","総診療実日数（外来）","１日当たり医療費点数（外来）","１件当たり受診回数（外来）","レセプト総点数（入院）","入院費用の割合","入院率","１件当たり医療費点数（入院）","１人当たり医療費点数（入院）","総診療実日数（入院）","１日当たり医療費点数（入院）","１件当たり在院日数（入院）","歯科レセプト件数","歯科受診率","歯科レセプト総点数","歯科１件当たり医療費点数","歯科１人当たり医療費点数","歯科総診療実日数","歯科１日当たり医療費点数","歯科１件当たり受診回数"]
["医療","保険者(地区)"]
["医療","県"]
["医療","同規模"]
["医療","国"]
["レコード種別","集計単位","介護１号認定者数","介護１号被保険者数","１号認定率","総給付費","総件数","１件当給付費","総給付費（支１）","総件数（支１）","要支援１","総給付費（支２）","総件数（支２）","要支援２","総給付費（介１）","総件数（介１）","要介護１","総給付費（介２）","総件数（介２）","要介護２","総給付費（介３）","総件数（介３）","要介護３","総給付費（介４）","総件数（介４）","要介護４","総給付費（介５）","総件数（介５）","要介護５","２号認定者数","介護２号被保険者数","２号認定率","１号認定者数（新規）","新規認定率","前年１号認定者数（新規）","介護１号被保険者数（前年）","前々年１号認定者数（新規）","介護１号被保険者数(前々年）","新規認定率比較（前年／前々年）","認定者数（糖尿病）","有病状況（糖尿病）","認定者数（高血圧症）","有病状況（高血圧症）","認定者数（脂質異常症）","有病状況（脂質異常症）","認定者数（心臓病）","有病状況（心臓病）","認定者数（脳疾患）","有病状況（脳疾患）","認定者数（がん）","有病状況（がん）","認定者数（筋・骨格）","有病状況（筋・骨格）","認定者数（精神）","有病状況（精神）","総給付費（居宅）","総件数（居宅）","１件当たり給付費（居宅）","事業所数（居宅）","千人当たり事業所数（居宅）","総給付費（施設）","総件数（施設）","１件当たり給付費（施設）","事業所数（施設）","千人当たり事業所数（施設）","医科レセ総点数（認定者）","医科レセ総件数（認定者）","要介護（支援）認定者医療費","医科レセ総点数（認定なし）","医科レセ総件数（認定なし）","要介護（支援）認定なし者医療費","総ポイント数(悪化）","悪化状況","総ポイント数(改善）","改善状況","認定者数（再掲_認知症）","有病状況（再掲_認知症）","認定者数（ｱﾙﾂﾊｲﾏｰ病）","有病状況（ｱﾙﾂﾊｲﾏｰ病）","歯科レセ総点数（認定者）","歯科レセ総件数（認定者）","歯科要介護（支援）認定者医療費","歯科レセ総点数（認定なし）","歯科レセ総件数（認定なし）","歯科要介護（支援）認定なし者医療費"]
["介護","保険者(地区)"]
["介護","県"]
["介護","同規模"]
["介護","国"]

{"sheet":"年度4","index":5,"n_rows":88,"n_cols":119,"rows_kept":88,"cut":false,"hidden":false,"merged":[]}
["レコード種別","保険者番号","保険者名","二次医療圏名","作成年月","県計・国計"]
["共通部",999999,"Ｘ市",null,"R01年度（累計）","国保組合含む"]
["レコード種別","集計単位","平均寿命（男性）","平均寿命（女性）","健康寿命（男性）","健康寿命（女性）","標準化死亡比（男性）","標準化死亡比（女性）","年齢調整死亡率（男性）","年齢調整死亡率（女性）","死亡者数","死亡者数（がん）","死因割合（がん）","死亡者数（心臓病）","死因割合（心臓病）","死亡者数（脳疾患）","死因割合（脳疾患）","死亡者数（糖尿病）","死因割合（糖尿病）","死亡者数（腎不全）","死因割合（腎不全）","死亡者数（自殺）","死因割合（自殺）","平均自立期間（要介護２以上）（男性）","平均自立期間95%信頼区間 上限（要介護２以上）（男性）","平均自立期間95%信頼区間 下限（要介護２以上）（男性）","平均自立期間（要介護２以上）（女性）","平均自立期間95%信頼区間 上限（要介護２以上）（女性）","平均自立期間95%信頼区間 下限（要介護２以上）（女性）","平均自立期間（要支援・要介護）（男性）","平均自立期間95%信頼区間 上限（要支援・要介護）（男性）","平均自立期間95%信頼区間 下限（要支援・要介護）（男性）","平均自立期間（要支援・要介護）（女性）","平均自立期間95%信頼区間 上限（要支援・要介護）（女性）","平均自立期間95%信頼区間 下限（要支援・要介護）（女性）","平均余命（男性）","平均余命95%信頼区間 上限（男性）","平均余命95%信頼区間 下限（男性）","平均余命（女性）","平均余命95%信頼区間 上限（女性）","平均余命95%信頼区間 下限（女性）","平均自立期間（要介護２以上）（男性）（二次医療圏）","平均自立期間95%信頼区間 上限（要介護２以上）（男性）（二次医療圏）","平均自立期間95%信頼区間 下限（要介護２以上）（男性）（二次医療圏）","平均自立期間（要介護２以上）（女性）（二次医療圏）","平均自立期間95%信頼区間 上限（要介護２以上）（女性）（二次医療圏）","平均自立期間95%信頼区間 下限（要介護２以上）（女性）（二次医療圏）","平均自立期間（要支援・要介護）（男性）（二次医療圏）","平均自立期間95%信頼区間 上限（要支援・要介護）（男性）（二次医療圏）","平均自立期間95%信頼区間 下限（要支援・要介護）（男性）（二次医療圏）","平均自立期間（要支援・要介護）（女性）（二次医療圏）","平均自立期間95%信頼区間 上限（要支援・要介護）（女性）（二次医療圏）","平均自立期間95%信頼区間 下限（要支援・要介護）（女性）（二次医療圏）","平均余命（男性）（二次医療圏）","平均余命95%信頼区間 上限（男性）（二次医療圏）","平均余命95%信頼区間 下限（男性）（二次医療圏）","平均余命（女性）（二次医療圏）","平均余命95%信頼区間 上限（女性）（二次医療圏）","平均余命95%信頼区間 下限（女性）（二次医療圏）"]
["平均寿命","保険者(地区)",null,null,null,null,null,null,null,null,null,null,null,null,null,null,null,null,null,null,null,null,null,80.099999999999994,81.099999999999994,79.099999999999994,80.099999999999994,81.099999999999994,79.099999999999994,null,null,null,null,null,null,80.3,81.3,79.3,80.3,81.3,79.3]
["平均寿命","県",null,null,null,null,null,null,null,null,null,null,null,null,null,null,null,null,null,null,null,null,null,80,81,79,80,81,79,null,null,null,null,null,null,80.2,81.2,79.2,80.2,81.2,79.2]
["平均寿命","同規模",null,null,null,null,null,null,null,null,null,null,null,null,null,null,null,null,null,null,null,null,null,79.900000000000006,80.900000000000006,78.900000000000006,79.900000000000006,80.900000000000006,78.900000000000006,null,null,null,null,null,null,80.099999999999994,81.099999999999994,79.099999999999994,80.099999999999994,81.099999999999994,79.099999999999994]
["平均寿命","国",null,null,null,null,null,null,null,null,null,null,null,null,null,null,null,null,null,null,null,null,null,79.8,80.8,78.8,79.8,80.8,78.8,null,null,null,null,null,null,80,81,79,80,81,79]
["レコード種別","集計単位","質問票有所見者数（服薬_高血圧症）","質問票総回答数（服薬_高血圧症）","服薬_高血圧症","質問票有所見者数（服薬_糖尿病）","質問票総回答数（服薬_糖尿病）","服薬_糖尿病","質問票有所見者数（服薬_脂質異常症）","質問票総回答数（服薬_脂質異常症）","服薬_脂質異常症","質問票有所見者数（既往歴_脳卒中）","質問票総回答数（既往歴_脳卒中）","既往歴_脳卒中","質問票有所見者数（既往歴_心臓病）","質問票総回答数（既往歴_心臓病）","既往歴_心臓病","質問票有所見者数（既往歴_慢性腎臓病・腎不全）","質問票総回答数（既往歴_慢性腎臓病・腎不全）","既往歴_慢性腎臓病・腎不全","質問票有所見者数（既往歴_貧血）","質問票総回答数（既往歴_貧血）","既往歴_貧血","質問票有所見者数（喫煙）","質問票総回答数（喫煙）","喫煙","質問票有所見者数（２０歳時体重から１０kg以上増加）","質問票総回答数（２０歳時体重から１０kg以上増加）","２０歳時体重から１０kg以上増加","質問票有所見者数（１回３０分以上の運動習慣なし）","質問票総回答数（１回３０分以上の運動習慣なし）","１回３０分以上の運動習慣なし","質問票有所見者数（１日１時間以上運動なし）","質問票総回答数（１日１時間以上運動なし）","１日１時間以上運動なし","質問票有所見者数（歩行速度遅い）","質問票総回答数（歩行速度遅い）","歩行速度遅い","質問票有所見者数（１年間で体重増減３kg以上）","質問票総回答数（１年間で体重増減３kg以上）","１年間で体重増減３kg以上","質問票有所見者数（食べる速度が速い）","質問票総回答数（食べる速度が速い）","食べる速度が速い","質問票有所見者数（食べる速度が普通）","質問票総回答数（食べる速度が普通）","食べる速度が普通","質問票有所見者数（食べる速度が遅い）","質問票総回答数（食べる速度が遅い）","食べる速度が遅い","質問票有所見者数（週３回以上就寝前夕食）","質問票総回答数（週３回以上就寝前夕食）","週３回以上就寝前夕食","質問票有所見者数（週３回以上夕食後間食）","質問票総回答数（週３回以上夕食後間食）","週３回以上夕食後間食","質問票有所見者数（週３回以上朝食を抜く）","質問票総回答数（週３回以上朝食を抜く）","週３回以上朝食を抜く","質問票有所見者数（毎日飲酒）","質問票総回答数（毎日飲酒）","毎日飲酒","質問票有所見者数（時々飲酒）","質問票総回答数（時々飲酒）","時々飲酒","質問票有所見者数（飲まない）","質問票総回答数（飲まない）","飲まない","質問票有所見者数（１合未満）","質問票総回答数（１合未満）","１合未満","質問票有所見者数（１～２合）","質問票総回答数（１～２合）","１～２合","質問票有所見者数（２～３合）","質問票総回答数（２～３合）","２～３合","質問票有所見者数（３合以上）","質問票総回答数（３合以上）","３合以上","質問票有所見者数（睡眠不足）","質問票総回答数（睡眠不足）","睡眠不足","質問票有所見者数（改善意欲なし）","質問票総回答数（改善意欲なし）","改善意欲なし","質問票有所見者数（改善意欲あり）","質問票総回答数（改善意欲あり）","改善意欲あり","質問票有所見者数（改善意欲ありかつ始めている）","質問票総回答数（改善意欲ありかつ始めている）","改善意欲ありかつ始めている","質問票有所見者数（取り組み済み６ヶ月未満）","質問票総回答数（取り組み済み６ヶ月未満）","取り組み済み６ヶ月未満","質問票有所見者数（取り組み済み６ヶ月以上）","質問票総回答数（取り組み済み６ヶ月以上）","取り組み済み６ヶ月以上","質問票有所見者数（保健指導利用しない）","質問票総回答数（保健指導利用しない）","保健指導利用しない","質問票有所見者数（咀嚼_何でも）","質問票総回答数（咀嚼_何でも）","咀嚼_何でも","質問票有所見者数（咀嚼_かみにくい）","質問票総回答数（咀嚼_かみにくい）","咀嚼_かみにくい","質問票有所見者数（咀嚼_ほとんどかめない）","質問票総回答数（咀嚼_ほとんどかめない）","咀嚼_ほとんどかめない","質問票有所見者数（３食以外間食_毎日）","質問票総回答数（３食以外間食_毎日）","３食以外間食_毎日","質問票有所見者数（３食以外間食_時々）","質問票総回答数（３食以外間食_時々）","３食以外間食_時々","質問票有所見者数（３食以外間食_ほとんど摂取しない）","質問票総回答数（３食以外間食_ほとんど摂取しない）","３食以外間食_ほとんど摂取しない"]
["生活習慣","保険者(地区)"]
["生活習慣","県"]
["生活習慣","同規模"]
["生活習慣","国"]
["レコード種別","集計単位","最大医療資源傷病名","医療費","総医療費","医療費割合"]
["医療費分析","保険者(地区)","慢性腎臓病（透有）"]
["医療費分析","保険者(地区)","慢性腎臓病（透無）"]
["医療費分析","保険者(地区)","がん"]
["医療費分析","保険者(地区)","精神"]
["医療費分析","保険者(地区)","筋・骨格"]
["医療費分析","保険者(地区)","糖尿病"]
["医療費分析","保険者(地区)","高血圧症"]
["医療費分析","保険者(地区)","高尿酸血症"]
["医療費分析","保険者(地区)","脂肪肝"]
["医療費分析","保険者(地区)","動脈硬化症"]
["医療費分析","保険者(地区)","脳出血"]
["医療費分析","保険者(地区)","脳梗塞"]
["医療費分析","保険者(地区)","狭心症"]
["医療費分析","保険者(地区)","心筋梗塞"]
["医療費分析","保険者(地区)","脂質異常症"]
["医療費分析","県","慢性腎臓病（透有）"]
["医療費分析","県","慢性腎臓病（透無）"]
["医療費分析","県","がん"]
["医療費分析","県","精神"]
["医療費分析","県","筋・骨格"]
["医療費分析","県","糖尿病"]
["医療費分析","県","高血圧症"]
["医療費分析","県","高尿酸血症"]
["医療費分析","県","脂肪肝"]
["医療費分析","県","動脈硬化症"]
["医療費分析","県","脳出血"]
["医療費分析","県","脳梗塞"]
["医療費分析","県","狭心症"]
["医療費分析","県","心筋梗塞"]
["医療費分析","県","脂質異常症"]
["医療費分析","同規模","慢性腎臓病（透有）"]
["医療費分析","同規模","慢性腎臓病（透無）"]
["医療費分析","同規模","がん"]
["医療費分析","同規模","精神"]
["医療費分析","同規模","筋・骨格"]
["医療費分析","同規模","糖尿病"]
["医療費分析","同規模","高血圧症"]
["医療費分析","同規模","高尿酸血症"]
["医療費分析","同規模","脂肪肝"]
["医療費分析","同規模","動脈硬化症"]
["医療費分析","同規模","脳出血"]
["医療費分析","同規模","脳梗塞"]
["医療費分析","同規模","狭心症"]
["医療費分析","同規模","心筋梗塞"]
["医療費分析","同規模","脂質異常症"]
["医療費分析","国","慢性腎臓病（透有）"]
["医療費分析","国","慢性腎臓病（透無）"]
["医療費分析","国","がん"]
["医療費分析","国","精神"]
["医療費分析","国","筋・骨格"]
["医療費分析","国","糖尿病"]
["医療費分析","国","高血圧症"]
["医療費分析","国","高尿酸血症"]
["医療費分析","国","脂肪肝"]
["医療費分析","国","動脈硬化症"]
["医療費分析","国","脳出血"]
["医療費分析","国","脳梗塞"]
["医療費分析","国","狭心症"]
["医療費分析","国","心筋梗塞"]
["医療費分析","国","脂質異常症"]
["レコード種別","集計単位","健診受診者数","健診対象者数","受診率","人数（メタボ）","メタボ割合","人数（メタボ）（男性）","メタボ割合（男性）","人数（メタボ）（女性）","メタボ割合（女性）","人数（予備群）","予備群割合","人数（予備群）（男性）","予備群割合（男性）","人数（予備群）（女性）","予備群割合（女性）","人数（非肥満高血糖）","非肥満高血糖割合","動機付け支援実施者数","積極的支援実施者数","動機付け支援対象者数","積極的支援対象者数","特定保健指導実施率","基準値超人数（腹囲）","基準値超割合（腹囲）","基準値超人数（腹囲）（男性）","基準値超割合（腹囲）（男性）","基準値超人数（腹囲）（女性）","基準値超割合（腹囲）（女性）","基準値超人数（BMI）","基準値超割合（BMI）","基準値超人数（BMI）（男性）","基準値超割合（BMI）（男性）","基準値超人数（BMI）（女性）","基準値超割合（BMI）（女性）","基準値超人数（血糖）","基準値超割合（血糖）","基準値超人数（血圧）","基準値超割合（血圧）","基準値超人数（脂質）","基準値超割合（脂質）","基準値超人数（血糖・血圧）","基準値超割合（血糖・血圧）","基準値超人数（血糖・脂質）","基準値超割合（血糖・脂質）","基準値超人数（血圧・脂質）","基準値超割合（血圧・脂質）","基準値超人数（血糖・血圧・脂質）","基準値超割合（血糖・血圧・脂質）","初回受診者数","初回受診率","受診勧奨者数","受診勧奨者率","受診勧奨者数（医科レセ有）","受診勧奨者医療機関受診率","受診勧奨者数（医科レセ無）","受診勧奨者医療機関非受診率","未治療者数","未治療者率","医科レセ総点数（健診受診者）","医科レセ総件数（健診受診者）","特定健診受診者１件当たり医科レセ点数","医科レセ総点数（健診未受診者）","医科レセ総件数（健診未受診者）","特定健診未受診者１件当たり医科レセ点数"]
["健診","保険者(地区)"]
["健診","県"]
["健診","同規模"]
["健診","国"]
["レコード種別","集計単位","被保険者数","病院数","千人当たり病院数","診療所数","千人当たり診療所数","病床数","千人当たり病床数","医師数","千人当たり医師数","レセプト件数（外来）","千人当たり外来患者数","レセプト件数（入院）","千人当たり入院患者数","レセプト件数","受診率","レセプト総点数","１件当たり点数","レセプト総点数（一般）","１件当たり点数（一般）","レセプト総点数（退職）","１件当たり点数（退職）","レセプト総点数（後期）","１件当たり点数（後期）","レセプト総点数（外来）","外来費用の割合","外来受診率","１件当たり医療費点数（外来）","１人当たり医療費点数（外来）","総診療実日数（外来）","１日当たり医療費点数（外来）","１件当たり受診回数（外来）","レセプト総点数（入院）","入院費用の割合","入院率","１件当たり医療費点数（入院）","１人当たり医療費点数（入院）","総診療実日数（入院）","１日当たり医療費点数（入院）","１件当たり在院日数（入院）","歯科レセプト件数","歯科受診率","歯科レセプト総点数","歯科１件当たり医療費点数","歯科１人当たり医療費点数","歯科総診療実日数","歯科１日当たり医療費点数","歯科１件当たり受診回数"]
["医療","保険者(地区)"]
["医療","県"]
["医療","同規模"]
["医療","国"]
["レコード種別","集計単位","介護１号認定者数","介護１号被保険者数","１号認定率","総給付費","総件数","１件当給付費","総給付費（支１）","総件数（支１）","要支援１","総給付費（支２）","総件数（支２）","要支援２","総給付費（介１）","総件数（介１）","要介護１","総給付費（介２）","総件数（介２）","要介護２","総給付費（介３）","総件数（介３）","要介護３","総給付費（介４）","総件数（介４）","要介護４","総給付費（介５）","総件数（介５）","要介護５","２号認定者数","介護２号被保険者数","２号認定率","１号認定者数（新規）","新規認定率","前年１号認定者数（新規）","介護１号被保険者数（前年）","前々年１号認定者数（新規）","介護１号被保険者数(前々年）","新規認定率比較（前年／前々年）","認定者数（糖尿病）","有病状況（糖尿病）","認定者数（高血圧症）","有病状況（高血圧症）","認定者数（脂質異常症）","有病状況（脂質異常症）","認定者数（心臓病）","有病状況（心臓病）","認定者数（脳疾患）","有病状況（脳疾患）","認定者数（がん）","有病状況（がん）","認定者数（筋・骨格）","有病状況（筋・骨格）","認定者数（精神）","有病状況（精神）","総給付費（居宅）","総件数（居宅）","１件当たり給付費（居宅）","事業所数（居宅）","千人当たり事業所数（居宅）","総給付費（施設）","総件数（施設）","１件当たり給付費（施設）","事業所数（施設）","千人当たり事業所数（施設）","医科レセ総点数（認定者）","医科レセ総件数（認定者）","要介護（支援）認定者医療費","医科レセ総点数（認定なし）","医科レセ総件数（認定なし）","要介護（支援）認定なし者医療費","総ポイント数(悪化）","悪化状況","総ポイント数(改善）","改善状況","認定者数（再掲_認知症）","有病状況（再掲_認知症）","認定者数（ｱﾙﾂﾊｲﾏｰ病）","有病状況（ｱﾙﾂﾊｲﾏｰ病）","歯科レセ総点数（認定者）","歯科レセ総件数（認定者）","歯科要介護（支援）認定者医療費","歯科レセ総点数（認定なし）","歯科レセ総件数（認定なし）","歯科要介護（支援）認定なし者医療費"]
["介護","保険者(地区)"]
["介護","県"]
["介護","同規模"]
["介護","国"]

{"sheet":"年度5","index":6,"n_rows":88,"n_cols":119,"rows_kept":88,"cut":false,"hidden":false,"merged":[]}
["レコード種別","保険者番号","保険者名","二次医療圏名","作成年月","県計・国計"]
["共通部",999999,"Ｘ市",null,"R01年度（累計）","国保組合含む"]
["レコード種別","集計単位","平均寿命（男性）","平均寿命（女性）","健康寿命（男性）","健康寿命（女性）","標準化死亡比（男性）","標準化死亡比（女性）","年齢調整死亡率（男性）","年齢調整死亡率（女性）","死亡者数","死亡者数（がん）","死因割合（がん）","死亡者数（心臓病）","死因割合（心臓病）","死亡者数（脳疾患）","死因割合（脳疾患）","死亡者数（糖尿病）","死因割合（糖尿病）","死亡者数（腎不全）","死因割合（腎不全）","死亡者数（自殺）","死因割合（自殺）","平均自立期間（要介護２以上）（男性）","平均自立期間95%信頼区間 上限（要介護２以上）（男性）","平均自立期間95%信頼区間 下限（要介護２以上）（男性）","平均自立期間（要介護２以上）（女性）","平均自立期間95%信頼区間 上限（要介護２以上）（女性）","平均自立期間95%信頼区間 下限（要介護２以上）（女性）","平均自立期間（要支援・要介護）（男性）","平均自立期間95%信頼区間 上限（要支援・要介護）（男性）","平均自立期間95%信頼区間 下限（要支援・要介護）（男性）","平均自立期間（要支援・要介護）（女性）","平均自立期間95%信頼区間 上限（要支援・要介護）（女性）","平均自立期間95%信頼区間 下限（要支援・要介護）（女性）","平均余命（男性）","平均余命95%信頼区間 上限（男性）","平均余命95%信頼区間 下限（男性）","平均余命（女性）","平均余命95%信頼区間 上限（女性）","平均余命95%信頼区間 下限（女性）","平均自立期間（要介護２以上）（男性）（二次医療圏）","平均自立期間95%信頼区間 上限（要介護２以上）（男性）（二次医療圏）","平均自立期間95%信頼区間 下限（要介護２以上）（男性）（二次医療圏）","平均自立期間（要介護２以上）（女性）（二次医療圏）","平均自立期間95%信頼区間 上限（要介護２以上）（女性）（二次医療圏）","平均自立期間95%信頼区間 下限（要介護２以上）（女性）（二次医療圏）","平均自立期間（要支援・要介護）（男性）（二次医療圏）","平均自立期間95%信頼区間 上限（要支援・要介護）（男性）（二次医療圏）","平均自立期間95%信頼区間 下限（要支援・要介護）（男性）（二次医療圏）","平均自立期間（要支援・要介護）（女性）（二次医療圏）","平均自立期間95%信頼区間 上限（要支援・要介護）（女性）（二次医療圏）","平均自立期間95%信頼区間 下限（要支援・要介護）（女性）（二次医療圏）","平均余命（男性）（二次医療圏）","平均余命95%信頼区間 上限（男性）（二次医療圏）","平均余命95%信頼区間 下限（男性）（二次医療圏）","平均余命（女性）（二次医療圏）","平均余命95%信頼区間 上限（女性）（二次医療圏）","平均余命95%信頼区間 下限（女性）（二次医療圏）"]
["平均寿命","保険者(地区)",null,null,null,null,null,null,null,null,null,null,null,null,null,null,null,null,null,null,null,null,null,80.099999999999994,81.099999999999994,79.099999999999994,80.099999999999994,81.099999999999994,79.099999999999994,null,null,null,null,null,null,80.3,81.3,79.3,80.3,81.3,79.3]
["平均寿命","県",null,null,null,null,null,null,null,null,null,null,null,null,null,null,null,null,null,null,null,null,null,80,81,79,80,81,79,null,null,null,null,null,null,80.2,81.2,79.2,80.2,81.2,79.2]
["平均寿命","同規模",null,null,null,null,null,null,null,null,null,null,null,null,null,null,null,null,null,null,null,null,null,79.900000000000006,80.900000000000006,78.900000000000006,79.900000000000006,80.900000000000006,78.900000000000006,null,null,null,null,null,null,80.099999999999994,81.099999999999994,79.099999999999994,80.099999999999994,81.099999999999994,79.099999999999994]
["平均寿命","国",null,null,null,null,null,null,null,null,null,null,null,null,null,null,null,null,null,null,null,null,null,79.8,80.8,78.8,79.8,80.8,78.8,null,null,null,null,null,null,80,81,79,80,81,79]
["レコード種別","集計単位","質問票有所見者数（服薬_高血圧症）","質問票総回答数（服薬_高血圧症）","服薬_高血圧症","質問票有所見者数（服薬_糖尿病）","質問票総回答数（服薬_糖尿病）","服薬_糖尿病","質問票有所見者数（服薬_脂質異常症）","質問票総回答数（服薬_脂質異常症）","服薬_脂質異常症","質問票有所見者数（既往歴_脳卒中）","質問票総回答数（既往歴_脳卒中）","既往歴_脳卒中","質問票有所見者数（既往歴_心臓病）","質問票総回答数（既往歴_心臓病）","既往歴_心臓病","質問票有所見者数（既往歴_慢性腎臓病・腎不全）","質問票総回答数（既往歴_慢性腎臓病・腎不全）","既往歴_慢性腎臓病・腎不全","質問票有所見者数（既往歴_貧血）","質問票総回答数（既往歴_貧血）","既往歴_貧血","質問票有所見者数（喫煙）","質問票総回答数（喫煙）","喫煙","質問票有所見者数（２０歳時体重から１０kg以上増加）","質問票総回答数（２０歳時体重から１０kg以上増加）","２０歳時体重から１０kg以上増加","質問票有所見者数（１回３０分以上の運動習慣なし）","質問票総回答数（１回３０分以上の運動習慣なし）","１回３０分以上の運動習慣なし","質問票有所見者数（１日１時間以上運動なし）","質問票総回答数（１日１時間以上運動なし）","１日１時間以上運動なし","質問票有所見者数（歩行速度遅い）","質問票総回答数（歩行速度遅い）","歩行速度遅い","質問票有所見者数（１年間で体重増減３kg以上）","質問票総回答数（１年間で体重増減３kg以上）","１年間で体重増減３kg以上","質問票有所見者数（食べる速度が速い）","質問票総回答数（食べる速度が速い）","食べる速度が速い","質問票有所見者数（食べる速度が普通）","質問票総回答数（食べる速度が普通）","食べる速度が普通","質問票有所見者数（食べる速度が遅い）","質問票総回答数（食べる速度が遅い）","食べる速度が遅い","質問票有所見者数（週３回以上就寝前夕食）","質問票総回答数（週３回以上就寝前夕食）","週３回以上就寝前夕食","質問票有所見者数（週３回以上夕食後間食）","質問票総回答数（週３回以上夕食後間食）","週３回以上夕食後間食","質問票有所見者数（週３回以上朝食を抜く）","質問票総回答数（週３回以上朝食を抜く）","週３回以上朝食を抜く","質問票有所見者数（毎日飲酒）","質問票総回答数（毎日飲酒）","毎日飲酒","質問票有所見者数（時々飲酒）","質問票総回答数（時々飲酒）","時々飲酒","質問票有所見者数（飲まない）","質問票総回答数（飲まない）","飲まない","質問票有所見者数（１合未満）","質問票総回答数（１合未満）","１合未満","質問票有所見者数（１～２合）","質問票総回答数（１～２合）","１～２合","質問票有所見者数（２～３合）","質問票総回答数（２～３合）","２～３合","質問票有所見者数（３合以上）","質問票総回答数（３合以上）","３合以上","質問票有所見者数（睡眠不足）","質問票総回答数（睡眠不足）","睡眠不足","質問票有所見者数（改善意欲なし）","質問票総回答数（改善意欲なし）","改善意欲なし","質問票有所見者数（改善意欲あり）","質問票総回答数（改善意欲あり）","改善意欲あり","質問票有所見者数（改善意欲ありかつ始めている）","質問票総回答数（改善意欲ありかつ始めている）","改善意欲ありかつ始めている","質問票有所見者数（取り組み済み６ヶ月未満）","質問票総回答数（取り組み済み６ヶ月未満）","取り組み済み６ヶ月未満","質問票有所見者数（取り組み済み６ヶ月以上）","質問票総回答数（取り組み済み６ヶ月以上）","取り組み済み６ヶ月以上","質問票有所見者数（保健指導利用しない）","質問票総回答数（保健指導利用しない）","保健指導利用しない","質問票有所見者数（咀嚼_何でも）","質問票総回答数（咀嚼_何でも）","咀嚼_何でも","質問票有所見者数（咀嚼_かみにくい）","質問票総回答数（咀嚼_かみにくい）","咀嚼_かみにくい","質問票有所見者数（咀嚼_ほとんどかめない）","質問票総回答数（咀嚼_ほとんどかめない）","咀嚼_ほとんどかめない","質問票有所見者数（３食以外間食_毎日）","質問票総回答数（３食以外間食_毎日）","３食以外間食_毎日","質問票有所見者数（３食以外間食_時々）","質問票総回答数（３食以外間食_時々）","３食以外間食_時々","質問票有所見者数（３食以外間食_ほとんど摂取しない）","質問票総回答数（３食以外間食_ほとんど摂取しない）","３食以外間食_ほとんど摂取しない"]
["生活習慣","保険者(地区)"]
["生活習慣","県"]
["生活習慣","同規模"]
["生活習慣","国"]
["レコード種別","集計単位","最大医療資源傷病名","医療費","総医療費","医療費割合"]
["医療費分析","保険者(地区)","慢性腎臓病（透有）"]
["医療費分析","保険者(地区)","慢性腎臓病（透無）"]
["医療費分析","保険者(地区)","がん"]
["医療費分析","保険者(地区)","精神"]
["医療費分析","保険者(地区)","筋・骨格"]
["医療費分析","保険者(地区)","糖尿病"]
["医療費分析","保険者(地区)","高血圧症"]
["医療費分析","保険者(地区)","高尿酸血症"]
["医療費分析","保険者(地区)","脂肪肝"]
["医療費分析","保険者(地区)","動脈硬化症"]
["医療費分析","保険者(地区)","脳出血"]
["医療費分析","保険者(地区)","脳梗塞"]
["医療費分析","保険者(地区)","狭心症"]
["医療費分析","保険者(地区)","心筋梗塞"]
["医療費分析","保険者(地区)","脂質異常症"]
["医療費分析","県","慢性腎臓病（透有）"]
["医療費分析","県","慢性腎臓病（透無）"]
["医療費分析","県","がん"]
["医療費分析","県","精神"]
["医療費分析","県","筋・骨格"]
["医療費分析","県","糖尿病"]
["医療費分析","県","高血圧症"]
["医療費分析","県","高尿酸血症"]
["医療費分析","県","脂肪肝"]
["医療費分析","県","動脈硬化症"]
["医療費分析","県","脳出血"]
["医療費分析","県","脳梗塞"]
["医療費分析","県","狭心症"]
["医療費分析","県","心筋梗塞"]
["医療費分析","県","脂質異常症"]
["医療費分析","同規模","慢性腎臓病（透有）"]
["医療費分析","同規模","慢性腎臓病（透無）"]
["医療費分析","同規模","がん"]
["医療費分析","同規模","精神"]
["医療費分析","同規模","筋・骨格"]
["医療費分析","同規模","糖尿病"]
["医療費分析","同規模","高血圧症"]
["医療費分析","同規模","高尿酸血症"]
["医療費分析","同規模","脂肪肝"]
["医療費分析","同規模","動脈硬化症"]
["医療費分析","同規模","脳出血"]
["医療費分析","同規模","脳梗塞"]
["医療費分析","同規模","狭心症"]
["医療費分析","同規模","心筋梗塞"]
["医療費分析","同規模","脂質異常症"]
["医療費分析","国","慢性腎臓病（透有）"]
["医療費分析","国","慢性腎臓病（透無）"]
["医療費分析","国","がん"]
["医療費分析","国","精神"]
["医療費分析","国","筋・骨格"]
["医療費分析","国","糖尿病"]
["医療費分析","国","高血圧症"]
["医療費分析","国","高尿酸血症"]
["医療費分析","国","脂肪肝"]
["医療費分析","国","動脈硬化症"]
["医療費分析","国","脳出血"]
["医療費分析","国","脳梗塞"]
["医療費分析","国","狭心症"]
["医療費分析","国","心筋梗塞"]
["医療費分析","国","脂質異常症"]
["レコード種別","集計単位","健診受診者数","健診対象者数","受診率","人数（メタボ）","メタボ割合","人数（メタボ）（男性）","メタボ割合（男性）","人数（メタボ）（女性）","メタボ割合（女性）","人数（予備群）","予備群割合","人数（予備群）（男性）","予備群割合（男性）","人数（予備群）（女性）","予備群割合（女性）","人数（非肥満高血糖）","非肥満高血糖割合","動機付け支援実施者数","積極的支援実施者数","動機付け支援対象者数","積極的支援対象者数","特定保健指導実施率","基準値超人数（腹囲）","基準値超割合（腹囲）","基準値超人数（腹囲）（男性）","基準値超割合（腹囲）（男性）","基準値超人数（腹囲）（女性）","基準値超割合（腹囲）（女性）","基準値超人数（BMI）","基準値超割合（BMI）","基準値超人数（BMI）（男性）","基準値超割合（BMI）（男性）","基準値超人数（BMI）（女性）","基準値超割合（BMI）（女性）","基準値超人数（血糖）","基準値超割合（血糖）","基準値超人数（血圧）","基準値超割合（血圧）","基準値超人数（脂質）","基準値超割合（脂質）","基準値超人数（血糖・血圧）","基準値超割合（血糖・血圧）","基準値超人数（血糖・脂質）","基準値超割合（血糖・脂質）","基準値超人数（血圧・脂質）","基準値超割合（血圧・脂質）","基準値超人数（血糖・血圧・脂質）","基準値超割合（血糖・血圧・脂質）","初回受診者数","初回受診率","受診勧奨者数","受診勧奨者率","受診勧奨者数（医科レセ有）","受診勧奨者医療機関受診率","受診勧奨者数（医科レセ無）","受診勧奨者医療機関非受診率","未治療者数","未治療者率","医科レセ総点数（健診受診者）","医科レセ総件数（健診受診者）","特定健診受診者１件当たり医科レセ点数","医科レセ総点数（健診未受診者）","医科レセ総件数（健診未受診者）","特定健診未受診者１件当たり医科レセ点数"]
["健診","保険者(地区)"]
["健診","県"]
["健診","同規模"]
["健診","国"]
["レコード種別","集計単位","被保険者数","病院数","千人当たり病院数","診療所数","千人当たり診療所数","病床数","千人当たり病床数","医師数","千人当たり医師数","レセプト件数（外来）","千人当たり外来患者数","レセプト件数（入院）","千人当たり入院患者数","レセプト件数","受診率","レセプト総点数","１件当たり点数","レセプト総点数（一般）","１件当たり点数（一般）","レセプト総点数（退職）","１件当たり点数（退職）","レセプト総点数（後期）","１件当たり点数（後期）","レセプト総点数（外来）","外来費用の割合","外来受診率","１件当たり医療費点数（外来）","１人当たり医療費点数（外来）","総診療実日数（外来）","１日当たり医療費点数（外来）","１件当たり受診回数（外来）","レセプト総点数（入院）","入院費用の割合","入院率","１件当たり医療費点数（入院）","１人当たり医療費点数（入院）","総診療実日数（入院）","１日当たり医療費点数（入院）","１件当たり在院日数（入院）","歯科レセプト件数","歯科受診率","歯科レセプト総点数","歯科１件当たり医療費点数","歯科１人当たり医療費点数","歯科総診療実日数","歯科１日当たり医療費点数","歯科１件当たり受診回数"]
["医療","保険者(地区)"]
["医療","県"]
["医療","同規模"]
["医療","国"]
["レコード種別","集計単位","介護１号認定者数","介護１号被保険者数","１号認定率","総給付費","総件数","１件当給付費","総給付費（支１）","総件数（支１）","要支援１","総給付費（支２）","総件数（支２）","要支援２","総給付費（介１）","総件数（介１）","要介護１","総給付費（介２）","総件数（介２）","要介護２","総給付費（介３）","総件数（介３）","要介護３","総給付費（介４）","総件数（介４）","要介護４","総給付費（介５）","総件数（介５）","要介護５","２号認定者数","介護２号被保険者数","２号認定率","１号認定者数（新規）","新規認定率","前年１号認定者数（新規）","介護１号被保険者数（前年）","前々年１号認定者数（新規）","介護１号被保険者数(前々年）","新規認定率比較（前年／前々年）","認定者数（糖尿病）","有病状況（糖尿病）","認定者数（高血圧症）","有病状況（高血圧症）","認定者数（脂質異常症）","有病状況（脂質異常症）","認定者数（心臓病）","有病状況（心臓病）","認定者数（脳疾患）","有病状況（脳疾患）","認定者数（がん）","有病状況（がん）","認定者数（筋・骨格）","有病状況（筋・骨格）","認定者数（精神）","有病状況（精神）","総給付費（居宅）","総件数（居宅）","１件当たり給付費（居宅）","事業所数（居宅）","千人当たり事業所数（居宅）","総給付費（施設）","総件数（施設）","１件当たり給付費（施設）","事業所数（施設）","千人当たり事業所数（施設）","医科レセ総点数（認定者）","医科レセ総件数（認定者）","要介護（支援）認定者医療費","医科レセ総点数（認定なし）","医科レセ総件数（認定なし）","要介護（支援）認定なし者医療費","総ポイント数(悪化）","悪化状況","総ポイント数(改善）","改善状況","認定者数（再掲_認知症）","有病状況（再掲_認知症）","認定者数（ｱﾙﾂﾊｲﾏｰ病）","有病状況（ｱﾙﾂﾊｲﾏｰ病）","歯科レセ総点数（認定者）","歯科レセ総件数（認定者）","歯科要介護（支援）認定者医療費","歯科レセ総点数（認定なし）","歯科レセ総件数（認定なし）","歯科要介護（支援）認定なし者医療費"]
["介護","保険者(地区)"]
["介護","県"]
["介護","同規模"]
["介護","国"]

{"sheet":"temp","index":7,"n_rows":0,"n_cols":0,"rows_kept":0,"cut":false,"hidden":true,"merged":[]}

{"sheet":"出力票","index":8,"n_rows":100,"n_cols":45,"rows_kept":100,"cut":false,"hidden":false,"merged":[[3,24,3,26],[2,24,2,26],[3,20,3,23],[2,20,2,23],[1,44,1,45]]}
["選択中のデータ"]
[{"$f":"VLOOKUP($Y$3&1,$A$54:$Q$93,COLUMN(),FALSE)","v":"R01年度（累計）1"},{"$f":"VLOOKUP($Y$3&1,$A$54:$Q$93,COLUMN(),FALSE)","v":"保険者番号"},{"$f":"VLOOKUP($Y$3&1,$A$54:$Q$93,COLUMN(),FALSE)","v":999999},{"$f":"VLOOKUP($Y$3&1,$A$54:$Q$93,COLUMN(),FALSE)","v":"保険者名"},{"$f":"VLOOKUP($Y$3&1,$A$54:$Q$93,COLUMN(),FALSE)","v":"Ｘ市"},null,null,null,null,null,null,null,null,null,null,null,null,null,null,null,"平均余命と平均自立期間の見える化ツールver.2.11",null,null,null,null,null,null,null,null,null,null,null,null,null,null,null,null,null,null,null,null,null,null,"作成日：",{"$f":"TODAY()","v":"2026-06-01"}]
[{"$f":"VLOOKUP($Y$3&2,$A$54:$Q$93,COLUMN(),FALSE)","v":"R01年度（累計）2"},{"$f":"VLOOKUP($Y$3&2,$A$54:$Q$93,COLUMN(),FALSE)","v":"作成年月"},{"$f":"VLOOKUP($Y$3&2,$A$54:$Q$93,COLUMN(),FALSE)","v":"R01年度（累計）"},null,null,null,null,null,null,null,null,null,null,null,null,null,null,null,null,null,"①国等と比較する年度を選択⇒",null,null,null,"R01年度（累計）"]
[{"$f":"VLOOKUP($Y$3&3,$A$54:$Q$93,COLUMN(),FALSE)","v":"R01年度（累計）3"},null,{"$f":"B6&\"=\"&VLOOKUP($Y$3&3,$A$54:$Q$93,COLUMN(),FALSE)","v":"保険者(地区)=999999:Ｘ市　R01年度（累計）（男性）"},null,null,{"$f":"B6&\"=\"&VLOOKUP($Y$3&3,$A$54:$Q$93,COLUMN(),FALSE)","v":"保険者(地区)=999999:Ｘ市　R01年度（累計）（女性）"},null,null,{"$f":"VLOOKUP($Y$3&3,$A$54:$Q$93,COLUMN(),FALSE)","v":"男性"},null,null,{"$f":"VLOOKUP($Y$3&3,$A$54:$Q$93,COLUMN(),FALSE)","v":"女性"},null,null,{"$f":"VLOOKUP($Y$3&3,$A$54:$Q$93,COLUMN(),FALSE)","v":"男性"},{"$f":"VLOOKUP($Y$3&3,$A$54:$Q$93,COLUMN(),FALSE)","v":"女性"},null,null,null,null,"②経年比較する地域を選択⇒",null,null,null,"保険者(地区)"]
[{"$f":"VLOOKUP($Y$3&4,$A$54:$Q$93,COLUMN(),FALSE)","v":"R01年度（累計）4"},null,{"$f":"VLOOKUP($Y$3&4,$A$54:$Q$93,COLUMN(),FALSE)","v":"平均余命（男性）"},"95%ΔUCI","95%ΔLCI","平均余命（女性）","95%ΔUCI","95%ΔLCI","平均自立期間（要介護２以上）（男性）","95%ΔUCI","95%ΔLCI","平均自立期間（要介護２以上）（女性）","95%ΔUCI","95%ΔLCI","自立していない期間の平均（男性）","自立していない期間の平均（女性）"]
[{"$f":"VLOOKUP($Y$3&5,$A$54:$Q$93,COLUMN(),FALSE)","v":"R01年度（累計）5"},"保険者(地区)",80.3,1,1,80.3,1,1,80.099999999999994,1,1,80.099999999999994,1,1,0.20000000000000284,0.20000000000000284]
[{"$f":"VLOOKUP($Y$3&6,$A$54:$Q$93,COLUMN(),FALSE)","v":"R01年度（累計）6"},"県",80.2,1,1,80.2,1,1,80,1,1,80,1,1,0.20000000000000284,0.20000000000000284]
[{"$f":"VLOOKUP($Y$3&7,$A$54:$Q$93,COLUMN(),FALSE)","v":"R01年度（累計）7"},"同規模",80.099999999999994,1,1,80.099999999999994,1,1,79.900000000000006,1,1,79.900000000000006,1,1,0.19999999999998863,0.19999999999998863]
[{"$f":"VLOOKUP($Y$3&8,$A$54:$Q$93,COLUMN(),FALSE)","v":"R01年度（累計）8"},"国",80,1,1,80,1,1,79.8,1,1,79.8,1,1,0.20000000000000284,0.20000000000000284]
[null,null,{"$f":"B11&\"の経年推移（男性）\"","v":"保険者(地区)の経年推移（男性）"},null,null,{"$f":"B11&\"の経年推移（女性）\"","v":"保険者(地区)の経年推移（女性）"}]
[{"$f":"LEFT(年度1!E2,FIND(\"年度\",年度1!E2)-1)","v":"R01"},{"$f":"VLOOKUP($Y$4,$B$58:$P$61,COLUMN()-1,FALSE)","v":"保険者(地区)"},80.3,1,1,80.3,1,1,80.099999999999994,1,1,80.099999999999994,1,1,0.20000000000000284,0.20000000000000284]
[{"$f":"LEFT(年度2!E2,FIND(\"年度\",年度2!E2)-1)","v":"R01"},{"$f":"VLOOKUP($Y$4,$B$66:$P$69,COLUMN()-1,FALSE)","v":"保険者(地区)"},80.3,1,1,80.3,1,1,80.099999999999994,1,1,80.099999999999994,1,1,0.20000000000000284,0.20000000000000284]
[{"$f":"LEFT(年度3!E2,FIND(\"年度\",年度3!E2)-1)","v":"R01"},{"$f":"VLOOKUP($Y$4,$B$74:$P$77,COLUMN()-1,FALSE)","v":"保険者(地区)"},80.3,1,1,80.3,1,1,80.099999999999994,1,1,80.099999999999994,1,1,0.20000000000000284,0.20000000000000284]
[{"$f":"LEFT(年度4!E2,FIND(\"年度\",年度4!E2)-1)","v":"R01"},{"$f":"VLOOKUP($Y$4,$B$82:$P$85,COLUMN()-1,FALSE)","v":"保険者(地区)"},80.3,1,1,80.3,1,1,80.099999999999994,1,1,80.099999999999994,1,1,0.20000000000000284,0.20000000000000284]
[{"$f":"LEFT(年度5!E2,FIND(\"年度\",年度5!E2)-1)","v":"R01"},{"$f":"VLOOKUP($Y$4,$B$90:$P$93,COLUMN()-1,FALSE)","v":"保険者(地区)"},80.3,1,1,80.3,1,1,80.099999999999994,1,1,80.099999999999994,1,1,0.20000000000000284,0.20000000000000284]
[]
[]
[]
[]
[]
[]
[]
[]
[]
[]
[]
[]
[]
[]
[]
[]
[]
[]
[]
[]
[]
[]
[]
[]
[]
[]
[]
[]
[]
[]
[]
[]
[]
[]
[]
[]
[]
[]
[{"$f":"年度1!E2&1","v":"R01年度（累計）1"},{"$f":"年度1!B1","v":"保険者番号"},{"$f":"年度1!B2","v":999999},{"$f":"年度1!C1","v":"保険者名"},{"$f":"年度1!C2","v":"Ｘ市"}]
[{"$f":"年度1!E2&2","v":"R01年度（累計）2"},{"$f":"年度1!E1","v":"作成年月"},{"$f":"年度1!E2","v":"R01年度（累計）"}]
[{"$f":"年度1!E2&3","v":"R01年度（累計）3"},null,{"$f":"年度1!B2&\":\"&年度1!C2&\"　\"&年度1!E2&\"（男性）\"","v":"999999:Ｘ市　R01年度（累計）（男性）"},null,null,{"$f":"年度1!B2&\":\"&年度1!C2&\"　\"&年度1!E2&\"（女性）\"","v":"999999:Ｘ市　R01年度（累計）（女性）"},null,null,"男性",null,null,"女性",null,null,"男性","女性"]
[{"$f":"年度1!E2&4","v":"R01年度（累計）4"},null,{"$f":"年度1!AJ3","v":"平均余命（男性）"},"95%ΔUCI","95%ΔLCI",{"$f":"年度1!AM3","v":"平均余命（女性）"},"95%ΔUCI","95%ΔLCI",{"$f":"年度1!X3","v":"平均自立期間（要介護２以上）（男性）"},"95%ΔUCI","95%ΔLCI",{"$f":"年度1!AA3","v":"平均自立期間（要介護２以上）（女性）"},"95%ΔUCI","95%ΔLCI","自立していない期間の平均（男性）","自立していない期間の平均（女性）"]
[{"$f":"年度1!E2&5","v":"R01年度（累計）5"},{"$f":"\"保険者(地区)\"","v":"保険者(地区)"},{"$f":"年度1!AJ4","v":80.3},{"$f":"年度1!AK4-年度1!AJ4","v":1},{"$f":"年度1!AJ4-年度1!AL4","v":1},{"$f":"年度1!AM4","v":80.3},{"$f":"年度1!AN4-年度1!AM4","v":1},{"$f":"年度1!AM4-年度1!AO4","v":1},{"$f":"年度1!X4","v":80.099999999999994},{"$f":"年度1!Y4-年度1!X4","v":1},{"$f":"年度1!X4-年度1!Z4","v":1},{"$f":"年度1!AA4","v":80.099999999999994},{"$f":"年度1!AB4-年度1!AA4","v":1},{"$f":"年度1!AA4-年度1!AC4","v":1},{"$f":"年度1!AJ4-年度1!X4","v":0.20000000000000284},{"$f":"年度1!AM4-年度1!AA4","v":0.20000000000000284}]
[{"$f":"年度1!E2&6","v":"R01年度（累計）6"},{"$f":"年度1!B5","v":"県"},{"$f":"年度1!AJ5","v":80.2},{"$f":"年度1!AK5-年度1!AJ5","v":1},{"$f":"年度1!AJ5-年度1!AL5","v":1},{"$f":"年度1!AM5","v":80.2},{"$f":"年度1!AN5-年度1!AM5","v":1},{"$f":"年度1!AM5-年度1!AO5","v":1},{"$f":"年度1!X5","v":80},{"$f":"年度1!Y5-年度1!X5","v":1},{"$f":"年度1!X5-年度1!Z5","v":1},{"$f":"年度1!AA5","v":80},{"$f":"年度1!AB5-年度1!AA5","v":1},{"$f":"年度1!AA5-年度1!AC5","v":1},{"$f":"年度1!AJ5-年度1!X5","v":0.20000000000000284},{"$f":"年度1!AM5-年度1!AA5","v":0.20000000000000284}]
[{"$f":"年度1!E2&7","v":"R01年度（累計）7"},{"$f":"年度1!B6","v":"同規模"},{"$f":"年度1!AJ6","v":80.099999999999994},{"$f":"年度1!AK6-年度1!AJ6","v":1},{"$f":"年度1!AJ6-年度1!AL6","v":1},{"$f":"年度1!AM6","v":80.099999999999994},{"$f":"年度1!AN6-年度1!AM6","v":1},{"$f":"年度1!AM6-年度1!AO6","v":1},{"$f":"年度1!X6","v":79.900000000000006},{"$f":"年度1!Y6-年度1!X6","v":1},{"$f":"年度1!X6-年度1!Z6","v":1},{"$f":"年度1!AA6","v":79.900000000000006},{"$f":"年度1!AB6-年度1!AA6","v":1},{"$f":"年度1!AA6-年度1!AC6","v":1},{"$f":"年度1!AJ6-年度1!X6","v":0.19999999999998863},{"$f":"年度1!AM6-年度1!AA6","v":0.19999999999998863}]
[{"$f":"年度1!E2&8","v":"R01年度（累計）8"},{"$f":"年度1!B7","v":"国"},{"$f":"年度1!AJ7","v":80},{"$f":"年度1!AK7-年度1!AJ7","v":1},{"$f":"年度1!AJ7-年度1!AL7","v":1},{"$f":"年度1!AM7","v":80},{"$f":"年度1!AN7-年度1!AM7","v":1},{"$f":"年度1!AM7-年度1!AO7","v":1},{"$f":"年度1!X7","v":79.8},{"$f":"年度1!Y7-年度1!X7","v":1},{"$f":"年度1!X7-年度1!Z7","v":1},{"$f":"年度1!AA7","v":79.8},{"$f":"年度1!AB7-年度1!AA7","v":1},{"$f":"年度1!AA7-年度1!AC7","v":1},{"$f":"年度1!AJ7-年度1!X7","v":0.20000000000000284},{"$f":"年度1!AM7-年度1!AA7","v":0.20000000000000284}]
[{"$f":"年度2!E2&1","v":"R01年度（累計）1"},{"$f":"年度2!B1","v":"保険者番号"},{"$f":"年度2!B2","v":999999},{"$f":"年度2!C1","v":"保険者名"},{"$f":"年度2!C2","v":"Ｘ市"}]
[{"$f":"年度2!E2&2","v":"R01年度（累計）2"},{"$f":"年度2!E1","v":"作成年月"},{"$f":"年度2!E2","v":"R01年度（累計）"}]
[{"$f":"年度2!E2&3","v":"R01年度（累計）3"},null,{"$f":"年度2!B2&\":\"&年度1!C2&\"　\"&年度2!E2&\"（男性）\"","v":"999999:Ｘ市　R01年度（累計）（男性）"},null,null,{"$f":"年度2!B2&\":\"&年度1!C2&\"　\"&年度2!E2&\"（女性）\"","v":"999999:Ｘ市　R01年度（累計）（女性）"},null,null,"男性",null,null,"女性",null,null,"男性","女性"]
[{"$f":"年度2!E2&4","v":"R01年度（累計）4"},null,{"$f":"年度2!AJ3","v":"平均余命（男性）"},"95%ΔUCI","95%ΔLCI",{"$f":"年度2!AM3","v":"平均余命（女性）"},"95%ΔUCI","95%ΔLCI",{"$f":"年度2!X3","v":"平均自立期間（要介護２以上）（男性）"},"95%ΔUCI","95%ΔLCI",{"$f":"年度2!AA3","v":"平均自立期間（要介護２以上）（女性）"},"95%ΔUCI","95%ΔLCI","自立していない期間の平均（男性）","自立していない期間の平均（女性）"]
[{"$f":"年度2!E2&5","v":"R01年度（累計）5"},{"$f":"\"保険者(地区)\"","v":"保険者(地区)"},{"$f":"年度2!AJ4","v":80.3},{"$f":"年度2!AK4-年度2!AJ4","v":1},{"$f":"年度2!AJ4-年度2!AL4","v":1},{"$f":"年度2!AM4","v":80.3},{"$f":"年度2!AN4-年度2!AM4","v":1},{"$f":"年度2!AM4-年度2!AO4","v":1},{"$f":"年度2!X4","v":80.099999999999994},{"$f":"年度2!Y4-年度2!X4","v":1},{"$f":"年度2!X4-年度2!Z4","v":1},{"$f":"年度2!AA4","v":80.099999999999994},{"$f":"年度2!AB4-年度2!AA4","v":1},{"$f":"年度2!AA4-年度2!AC4","v":1},{"$f":"年度2!AJ4-年度2!X4","v":0.20000000000000284},{"$f":"年度2!AM4-年度2!AA4","v":0.20000000000000284}]
[{"$f":"年度2!E2&6","v":"R01年度（累計）6"},{"$f":"年度2!B5","v":"県"},{"$f":"年度2!AJ5","v":80.2},{"$f":"年度2!AK5-年度2!AJ5","v":1},{"$f":"年度2!AJ5-年度2!AL5","v":1},{"$f":"年度2!AM5","v":80.2},{"$f":"年度2!AN5-年度2!AM5","v":1},{"$f":"年度2!AM5-年度2!AO5","v":1},{"$f":"年度2!X5","v":80},{"$f":"年度2!Y5-年度2!X5","v":1},{"$f":"年度2!X5-年度2!Z5","v":1},{"$f":"年度2!AA5","v":80},{"$f":"年度2!AB5-年度2!AA5","v":1},{"$f":"年度2!AA5-年度2!AC5","v":1},{"$f":"年度2!AJ5-年度2!X5","v":0.20000000000000284},{"$f":"年度2!AM5-年度2!AA5","v":0.20000000000000284}]
[{"$f":"年度2!E2&7","v":"R01年度（累計）7"},{"$f":"年度2!B6","v":"同規模"},{"$f":"年度2!AJ6","v":80.099999999999994},{"$f":"年度2!AK6-年度2!AJ6","v":1},{"$f":"年度2!AJ6-年度2!AL6","v":1},{"$f":"年度2!AM6","v":80.099999999999994},{"$f":"年度2!AN6-年度2!AM6","v":1},{"$f":"年度2!AM6-年度2!AO6","v":1},{"$f":"年度2!X6","v":79.900000000000006},{"$f":"年度2!Y6-年度2!X6","v":1},{"$f":"年度2!X6-年度2!Z6","v":1},{"$f":"年度2!AA6","v":79.900000000000006},{"$f":"年度2!AB6-年度2!AA6","v":1},{"$f":"年度2!AA6-年度2!AC6","v":1},{"$f":"年度2!AJ6-年度2!X6","v":0.19999999999998863},{"$f":"年度2!AM6-年度2!AA6","v":0.19999999999998863}]
[{"$f":"年度2!E2&8","v":"R01年度（累計）8"},{"$f":"年度2!B7","v":"国"},{"$f":"年度2!AJ7","v":80},{"$f":"年度2!AK7-年度2!AJ7","v":1},{"$f":"年度2!AJ7-年度2!AL7","v":1},{"$f":"年度2!AM7","v":80},{"$f":"年度2!AN7-年度2!AM7","v":1},{"$f":"年度2!AM7-年度2!AO7","v":1},{"$f":"年度2!X7","v":79.8},{"$f":"年度2!Y7-年度2!X7","v":1},{"$f":"年度2!X7-年度2!Z7","v":1},{"$f":"年度2!AA7","v":79.8},{"$f":"年度2!AB7-年度2!AA7","v":1},{"$f":"年度2!AA7-年度2!AC7","v":1},{"$f":"年度2!AJ7-年度2!X7","v":0.20000000000000284},{"$f":"年度2!AM7-年度2!AA7","v":0.20000000000000284}]
[{"$f":"年度3!E2&1","v":"R01年度（累計）1"},{"$f":"年度3!B1","v":"保険者番号"},{"$f":"年度3!B2","v":999999},{"$f":"年度3!C1","v":"保険者名"},{"$f":"年度3!C2","v":"Ｘ市"}]
[{"$f":"年度3!E2&2","v":"R01年度（累計）2"},{"$f":"年度3!E1","v":"作成年月"},{"$f":"年度3!E2","v":"R01年度（累計）"}]
[{"$f":"年度3!E2&3","v":"R01年度（累計）3"},null,{"$f":"年度3!B2&\":\"&年度1!C2&\"　\"&年度3!E2&\"（男性）\"","v":"999999:Ｘ市　R01年度（累計）（男性）"},null,null,{"$f":"年度3!B2&\":\"&年度1!C2&\"　\"&年度3!E2&\"（女性）\"","v":"999999:Ｘ市　R01年度（累計）（女性）"},null,null,"男性",null,null,"女性",null,null,"男性","女性"]
[{"$f":"年度3!E2&4","v":"R01年度（累計）4"},null,{"$f":"年度3!AJ3","v":"平均余命（男性）"},"95%ΔUCI","95%ΔLCI",{"$f":"年度3!AM3","v":"平均余命（女性）"},"95%ΔUCI","95%ΔLCI",{"$f":"年度3!X3","v":"平均自立期間（要介護２以上）（男性）"},"95%ΔUCI","95%ΔLCI",{"$f":"年度3!AA3","v":"平均自立期間（要介護２以上）（女性）"},"95%ΔUCI","95%ΔLCI","自立していない期間の平均（男性）","自立していない期間の平均（女性）"]
[{"$f":"年度3!E2&5","v":"R01年度（累計）5"},{"$f":"\"保険者(地区)\"","v":"保険者(地区)"},{"$f":"年度3!AJ4","v":80.3},{"$f":"年度3!AK4-年度3!AJ4","v":1},{"$f":"年度3!AJ4-年度3!AL4","v":1},{"$f":"年度3!AM4","v":80.3},{"$f":"年度3!AN4-年度3!AM4","v":1},{"$f":"年度3!AM4-年度3!AO4","v":1},{"$f":"年度3!X4","v":80.099999999999994},{"$f":"年度3!Y4-年度3!X4","v":1},{"$f":"年度3!X4-年度3!Z4","v":1},{"$f":"年度3!AA4","v":80.099999999999994},{"$f":"年度3!AB4-年度3!AA4","v":1},{"$f":"年度3!AA4-年度3!AC4","v":1},{"$f":"年度3!AJ4-年度3!X4","v":0.20000000000000284},{"$f":"年度3!AM4-年度3!AA4","v":0.20000000000000284}]
[{"$f":"年度3!E2&6","v":"R01年度（累計）6"},{"$f":"年度3!B5","v":"県"},{"$f":"年度3!AJ5","v":80.2},{"$f":"年度3!AK5-年度3!AJ5","v":1},{"$f":"年度3!AJ5-年度3!AL5","v":1},{"$f":"年度3!AM5","v":80.2},{"$f":"年度3!AN5-年度3!AM5","v":1},{"$f":"年度3!AM5-年度3!AO5","v":1},{"$f":"年度3!X5","v":80},{"$f":"年度3!Y5-年度3!X5","v":1},{"$f":"年度3!X5-年度3!Z5","v":1},{"$f":"年度3!AA5","v":80},{"$f":"年度3!AB5-年度3!AA5","v":1},{"$f":"年度3!AA5-年度3!AC5","v":1},{"$f":"年度3!AJ5-年度3!X5","v":0.20000000000000284},{"$f":"年度3!AM5-年度3!AA5","v":0.20000000000000284}]
[{"$f":"年度3!E2&7","v":"R01年度（累計）7"},{"$f":"年度3!B6","v":"同規模"},{"$f":"年度3!AJ6","v":80.099999999999994},{"$f":"年度3!AK6-年度3!AJ6","v":1},{"$f":"年度3!AJ6-年度3!AL6","v":1},{"$f":"年度3!AM6","v":80.099999999999994},{"$f":"年度3!AN6-年度3!AM6","v":1},{"$f":"年度3!AM6-年度3!AO6","v":1},{"$f":"年度3!X6","v":79.900000000000006},{"$f":"年度3!Y6-年度3!X6","v":1},{"$f":"年度3!X6-年度3!Z6","v":1},{"$f":"年度3!AA6","v":79.900000000000006},{"$f":"年度3!AB6-年度3!AA6","v":1},{"$f":"年度3!AA6-年度3!AC6","v":1},{"$f":"年度3!AJ6-年度3!X6","v":0.19999999999998863},{"$f":"年度3!AM6-年度3!AA6","v":0.19999999999998863}]
[{"$f":"年度3!E2&8","v":"R01年度（累計）8"},{"$f":"年度3!B7","v":"国"},{"$f":"年度3!AJ7","v":80},{"$f":"年度3!AK7-年度3!AJ7","v":1},{"$f":"年度3!AJ7-年度3!AL7","v":1},{"$f":"年度3!AM7","v":80},{"$f":"年度3!AN7-年度3!AM7","v":1},{"$f":"年度3!AM7-年度3!AO7","v":1},{"$f":"年度3!X7","v":79.8},{"$f":"年度3!Y7-年度3!X7","v":1},{"$f":"年度3!X7-年度3!Z7","v":1},{"$f":"年度3!AA7","v":79.8},{"$f":"年度3!AB7-年度3!AA7","v":1},{"$f":"年度3!AA7-年度3!AC7","v":1},{"$f":"年度3!AJ7-年度3!X7","v":0.20000000000000284},{"$f":"年度3!AM7-年度3!AA7","v":0.20000000000000284}]
[{"$f":"年度4!E2&1","v":"R01年度（累計）1"},{"$f":"年度4!B1","v":"保険者番号"},{"$f":"年度4!B2","v":999999},{"$f":"年度4!C1","v":"保険者名"},{"$f":"年度4!C2","v":"Ｘ市"}]
[{"$f":"年度4!E2&2","v":"R01年度（累計）2"},{"$f":"年度4!E1","v":"作成年月"},{"$f":"年度4!E2","v":"R01年度（累計）"}]
[{"$f":"年度4!E2&3","v":"R01年度（累計）3"},null,{"$f":"年度4!B2&\":\"&年度1!C2&\"　\"&年度4!E2&\"（男性）\"","v":"999999:Ｘ市　R01年度（累計）（男性）"},null,null,{"$f":"年度4!B2&\":\"&年度1!C2&\"　\"&年度4!E2&\"（女性）\"","v":"999999:Ｘ市　R01年度（累計）（女性）"},null,null,"男性",null,null,"女性",null,null,"男性","女性"]
[{"$f":"年度4!E2&4","v":"R01年度（累計）4"},null,{"$f":"年度4!AJ3","v":"平均余命（男性）"},"95%ΔUCI","95%ΔLCI",{"$f":"年度4!AM3","v":"平均余命（女性）"},"95%ΔUCI","95%ΔLCI",{"$f":"年度4!X3","v":"平均自立期間（要介護２以上）（男性）"},"95%ΔUCI","95%ΔLCI",{"$f":"年度4!AA3","v":"平均自立期間（要介護２以上）（女性）"},"95%ΔUCI","95%ΔLCI","自立していない期間の平均（男性）","自立していない期間の平均（女性）"]
[{"$f":"年度4!E2&5","v":"R01年度（累計）5"},{"$f":"\"保険者(地区)\"","v":"保険者(地区)"},{"$f":"年度4!AJ4","v":80.3},{"$f":"年度4!AK4-年度4!AJ4","v":1},{"$f":"年度4!AJ4-年度4!AL4","v":1},{"$f":"年度4!AM4","v":80.3},{"$f":"年度4!AN4-年度4!AM4","v":1},{"$f":"年度4!AM4-年度4!AO4","v":1},{"$f":"年度4!X4","v":80.099999999999994},{"$f":"年度4!Y4-年度4!X4","v":1},{"$f":"年度4!X4-年度4!Z4","v":1},{"$f":"年度4!AA4","v":80.099999999999994},{"$f":"年度4!AB4-年度4!AA4","v":1},{"$f":"年度4!AA4-年度4!AC4","v":1},{"$f":"年度4!AJ4-年度4!X4","v":0.20000000000000284},{"$f":"年度4!AM4-年度4!AA4","v":0.20000000000000284}]
[{"$f":"年度4!E2&6","v":"R01年度（累計）6"},{"$f":"年度4!B5","v":"県"},{"$f":"年度4!AJ5","v":80.2},{"$f":"年度4!AK5-年度4!AJ5","v":1},{"$f":"年度4!AJ5-年度4!AL5","v":1},{"$f":"年度4!AM5","v":80.2},{"$f":"年度4!AN5-年度4!AM5","v":1},{"$f":"年度4!AM5-年度4!AO5","v":1},{"$f":"年度4!X5","v":80},{"$f":"年度4!Y5-年度4!X5","v":1},{"$f":"年度4!X5-年度4!Z5","v":1},{"$f":"年度4!AA5","v":80},{"$f":"年度4!AB5-年度4!AA5","v":1},{"$f":"年度4!AA5-年度4!AC5","v":1},{"$f":"年度4!AJ5-年度4!X5","v":0.20000000000000284},{"$f":"年度4!AM5-年度4!AA5","v":0.20000000000000284}]
[{"$f":"年度4!E2&7","v":"R01年度（累計）7"},{"$f":"年度4!B6","v":"同規模"},{"$f":"年度4!AJ6","v":80.099999999999994},{"$f":"年度4!AK6-年度4!AJ6","v":1},{"$f":"年度4!AJ6-年度4!AL6","v":1},{"$f":"年度4!AM6","v":80.099999999999994},{"$f":"年度4!AN6-年度4!AM6","v":1},{"$f":"年度4!AM6-年度4!AO6","v":1},{"$f":"年度4!X6","v":79.900000000000006},{"$f":"年度4!Y6-年度4!X6","v":1},{"$f":"年度4!X6-年度4!Z6","v":1},{"$f":"年度4!AA6","v":79.900000000000006},{"$f":"年度4!AB6-年度4!AA6","v":1},{"$f":"年度4!AA6-年度4!AC6","v":1},{"$f":"年度4!AJ6-年度4!X6","v":0.19999999999998863},{"$f":"年度4!AM6-年度4!AA6","v":0.19999999999998863}]
[{"$f":"年度4!E2&8","v":"R01年度（累計）8"},{"$f":"年度4!B7","v":"国"},{"$f":"年度4!AJ7","v":80},{"$f":"年度4!AK7-年度4!AJ7","v":1},{"$f":"年度4!AJ7-年度4!AL7","v":1},{"$f":"年度4!AM7","v":80},{"$f":"年度4!AN7-年度4!AM7","v":1},{"$f":"年度4!AM7-年度4!AO7","v":1},{"$f":"年度4!X7","v":79.8},{"$f":"年度4!Y7-年度4!X7","v":1},{"$f":"年度4!X7-年度4!Z7","v":1},{"$f":"年度4!AA7","v":79.8},{"$f":"年度4!AB7-年度4!AA7","v":1},{"$f":"年度4!AA7-年度4!AC7","v":1},{"$f":"年度4!AJ7-年度4!X7","v":0.20000000000000284},{"$f":"年度4!AM7-年度4!AA7","v":0.20000000000000284}]
[{"$f":"年度5!E2&1","v":"R01年度（累計）1"},{"$f":"年度5!B1","v":"保険者番号"},{"$f":"年度5!B2","v":999999},{"$f":"年度5!C1","v":"保険者名"},{"$f":"年度5!C2","v":"Ｘ市"}]
[{"$f":"年度5!E2&2","v":"R01年度（累計）2"},{"$f":"年度5!E1","v":"作成年月"},{"$f":"年度5!E2","v":"R01年度（累計）"}]
[{"$f":"年度5!E2&3","v":"R01年度（累計）3"},null,{"$f":"年度5!B2&\":\"&年度1!C2&\"　\"&年度5!E2&\"（男性）\"","v":"999999:Ｘ市　R01年度（累計）（男性）"},null,null,{"$f":"年度5!B2&\":\"&年度1!C2&\"　\"&年度5!E2&\"（女性）\"","v":"999999:Ｘ市　R01年度（累計）（女性）"},null,null,"男性",null,null,"女性",null,null,"男性","女性"]
[{"$f":"年度5!E2&4","v":"R01年度（累計）4"},null,{"$f":"年度5!AJ3","v":"平均余命（男性）"},"95%ΔUCI","95%ΔLCI",{"$f":"年度5!AM3","v":"平均余命（女性）"},"95%ΔUCI","95%ΔLCI",{"$f":"年度5!X3","v":"平均自立期間（要介護２以上）（男性）"},"95%ΔUCI","95%ΔLCI",{"$f":"年度5!AA3","v":"平均自立期間（要介護２以上）（女性）"},"95%ΔUCI","95%ΔLCI","自立していない期間の平均（男性）","自立していない期間の平均（女性）"]
[{"$f":"年度5!E2&5","v":"R01年度（累計）5"},{"$f":"\"保険者(地区)\"","v":"保険者(地区)"},{"$f":"年度5!AJ4","v":80.3},{"$f":"年度5!AK4-年度5!AJ4","v":1},{"$f":"年度5!AJ4-年度5!AL4","v":1},{"$f":"年度5!AM4","v":80.3},{"$f":"年度5!AN4-年度5!AM4","v":1},{"$f":"年度5!AM4-年度5!AO4","v":1},{"$f":"年度5!X4","v":80.099999999999994},{"$f":"年度5!Y4-年度5!X4","v":1},{"$f":"年度5!X4-年度5!Z4","v":1},{"$f":"年度5!AA4","v":80.099999999999994},{"$f":"年度5!AB4-年度5!AA4","v":1},{"$f":"年度5!AA4-年度5!AC4","v":1},{"$f":"年度5!AJ4-年度5!X4","v":0.20000000000000284},{"$f":"年度5!AM4-年度5!AA4","v":0.20000000000000284}]
[{"$f":"年度5!E2&6","v":"R01年度（累計）6"},{"$f":"年度5!B5","v":"県"},{"$f":"年度5!AJ5","v":80.2},{"$f":"年度5!AK5-年度5!AJ5","v":1},{"$f":"年度5!AJ5-年度5!AL5","v":1},{"$f":"年度5!AM5","v":80.2},{"$f":"年度5!AN5-年度5!AM5","v":1},{"$f":"年度5!AM5-年度5!AO5","v":1},{"$f":"年度5!X5","v":80},{"$f":"年度5!Y5-年度5!X5","v":1},{"$f":"年度5!X5-年度5!Z5","v":1},{"$f":"年度5!AA5","v":80},{"$f":"年度5!AB5-年度5!AA5","v":1},{"$f":"年度5!AA5-年度5!AC5","v":1},{"$f":"年度5!AJ5-年度5!X5","v":0.20000000000000284},{"$f":"年度5!AM5-年度5!AA5","v":0.20000000000000284}]
[{"$f":"年度5!E2&7","v":"R01年度（累計）7"},{"$f":"年度5!B6","v":"同規模"},{"$f":"年度5!AJ6","v":80.099999999999994},{"$f":"年度5!AK6-年度5!AJ6","v":1},{"$f":"年度5!AJ6-年度5!AL6","v":1},{"$f":"年度5!AM6","v":80.099999999999994},{"$f":"年度5!AN6-年度5!AM6","v":1},{"$f":"年度5!AM6-年度5!AO6","v":1},{"$f":"年度5!X6","v":79.900000000000006},{"$f":"年度5!Y6-年度5!X6","v":1},{"$f":"年度5!X6-年度5!Z6","v":1},{"$f":"年度5!AA6","v":79.900000000000006},{"$f":"年度5!AB6-年度5!AA6","v":1},{"$f":"年度5!AA6-年度5!AC6","v":1},{"$f":"年度5!AJ6-年度5!X6","v":0.19999999999998863},{"$f":"年度5!AM6-年度5!AA6","v":0.19999999999998863}]
[{"$f":"年度5!E2&8","v":"R01年度（累計）8"},{"$f":"年度5!B7","v":"国"},{"$f":"年度5!AJ7","v":80},{"$f":"年度5!AK7-年度5!AJ7","v":1},{"$f":"年度5!AJ7-年度5!AL7","v":1},{"$f":"年度5!AM7","v":80},{"$f":"年度5!AN7-年度5!AM7","v":1},{"$f":"年度5!AM7-年度5!AO7","v":1},{"$f":"年度5!X7","v":79.8},{"$f":"年度5!Y7-年度5!X7","v":1},{"$f":"年度5!X7-年度5!Z7","v":1},{"$f":"年度5!AA7","v":79.8},{"$f":"年度5!AB7-年度5!AA7","v":1},{"$f":"年度5!AA7-年度5!AC7","v":1},{"$f":"年度5!AJ7-年度5!X7","v":0.20000000000000284},{"$f":"年度5!AM7-年度5!AA7","v":0.20000000000000284}]
[]
[null,"年度リスト","地域リスト"]
[null,{"$f":"年度1!E2","v":"R01年度（累計）"},"保険者(地区)"]
[null,{"$f":"年度2!E2","v":"R01年度（累計）"},"県"]
[null,{"$f":"年度3!E2","v":"R01年度（累計）"},"同規模"]
[null,{"$f":"年度4!E2","v":"R01年度（累計）"},"国"]
[null,{"$f":"年度5!E2","v":"R01年度（累計）"}]